Workbook

Sheet ANEXO A
A1: COMANDO DA AERONÁUTICA FICHA INFORMATIVA DE AERÓDROMOS Anexo A à ICA 63-19
A3: Características do Aeródromo
A5: A | B5: Dados Gerais do Aeródromo:
A6: A1 | B6: Denominação do Aeródromo: | C6: ='DADOS GERAIS-A'!C2 -> Comandante Antônio Amilton Beraldo
A7: A2 | B7: Código OACI: | C7: ='DADOS GERAIS-A'!C3 -> SSZW
A8: A3 | B8: ARP (Latitude): | C8: ='DADOS GERAIS-A'!C4*10000+'DADOS GERAIS-A'!C5*100+'DADOS GERAIS-A'!C6 -> 251104
A9: A4 | B9: ARP (Longitude): | C9: ='DADOS GERAIS-A'!C8*10000+'DADOS GERAIS-A'!C9*100+'DADOS GERAIS-A'!C10 -> 500838
A10: A5 | B10: Elevação (m): | C10: =FORMULÁRIO!$C$7 -> 787.71
A11: B | B11: Dados Gerais da(s) Pista(s): | C11: PISTA 1 | E11: PISTA 2 | G11: PISTA 3
A12: B1 | B12: Designação: | C12: 8
C13: 26
A14: B2 | B14: Comprimento (m): | C14: =FORMULÁRIO!C13 -> 1280.423186
A15: B3 | B15: Largura (m): | C15: =FORMULÁRIO!C14 -> 30
A16: B4 | B16: Comprimento da Faixa de Pista (m): | C16: =FORMULÁRIO!C17 -> 1400.423186
A17: B5 | B17: Largura da Faixa de Pista (m): | C17: =FORMULÁRIO!C16 -> 150
A18: B6 | B18: Período de Operação: | C18: =FORMULÁRIO!C18 -> Diurno e Noturno
A19: C | B19: Dados da Cabeceira Menor: | C19: PISTA 1 | E19: PISTA 2 | G19: PISTA 3
A20: C1 | B20: Número: | C20: =C12 -> 8
A21: C2 | B21: Rumo verdadeiro: | C21: =FORMULÁRIO!C21*10000+FORMULÁRIO!D21*100+FORMULÁRIO!E21 -> 585410.5406
A22: C3 | B22: Coordenadas geográficas (latitude): | C22: =FORMULÁRIO!C22*10000+FORMULÁRIO!D22*100+FORMULÁRIO!E22 -> 251113.41
A23: C4 | B23: Coordenadas geográficas (longitude): | C23: =FORMULÁRIO!C23*10000+FORMULÁRIO!D23*100+FORMULÁRIO!E23 -> 500855.02
A24: C5 | B24: Elevação (m): | C24: =FORMULÁRIO!C24 -> 787.71
A25: C6 | B25: Código de Referência POUSO: | C25: =FORMULÁRIO!C26 -> 3
A26: C7 | B26: Código de Referência DECOLAGEM: | C26: =FORMULÁRIO!C29 -> 3
A27: C8 | B27: Letra de Código de Referência: | C27: =FORMULÁRIO!F12 -> C
A28: C9 | B28: Tipo de utilização: | C28: =FORMULÁRIO!C25 -> Pouso e Decolagem
A29: C10 | B29: Tipo de operação para pouso: | C29: =FORMULÁRIO!C27 -> VFR
A30: C11 | B30: Tipo de operação para decolagem: | C30: =FORMULÁRIO!C30 -> VFR
A31: C12 | B31: Zona de parada: | C31: =FORMULÁRIO!C39 -> 0
A32: C13 | B32: Comprimento (m): | C32: =FORMULÁRIO!C40 -> 0
A33: C14 | B33: Largura (m): | C33: =FORMULÁRIO!C41 -> 0
A34: C15 | B34: Zona desimpedida: | C34: =FORMULÁRIO!C42 -> 0
A35: C16 | B35: Comprimento (m): | C35: =FORMULÁRIO!C43 -> 0
A36: C17 | B36: Largura (m): | C36: =FORMULÁRIO!C44 -> 0
A37: D | B37: Dados da Cabeceira Maior: | C37: PISTA 1 | E37: PISTA 2 | G37: PISTA 3
A38: D1 | B38: Número: | C38: =C13 -> 26
A39: D2 | B39: Rumo verdadeiro: | C39: =FORMULÁRIO!F21*10000+FORMULÁRIO!G21*100+FORMULÁRIO!H21 -> 2385410.541
A40: D3 | B40: Coordenadas geográficas (latitude): | C40: =FORMULÁRIO!F22*10000+FORMULÁRIO!G22*100+FORMULÁRIO!H22 -> 251051.91
A41: D4 | B41: Coordenadas geográficas (longitude): | C41: =FORMULÁRIO!F23*10000+FORMULÁRIO!G23*100+FORMULÁRIO!H23 -> 500815.87
A42: D5 | B42: Elevação (m): | C42: =FORMULÁRIO!F24 -> 786.379
A43: D6 | B43: Código de Referência POUSO: | C43: =FORMULÁRIO!F26 -> 3
A44: D7 | B44: Código de Referência DECOLAGEM: | C44: =FORMULÁRIO!F29 -> 3
A45: D8 | B45: Letra de Código de Referência: | C45: =FORMULÁRIO!F12 -> C
A46: D9 | B46: Tipo de utilização: | C46: =FORMULÁRIO!F25 -> Pouso e Decolagem
A47: D10 | B47: Tipo de operação para pouso: | C47: =FORMULÁRIO!F27 -> VFR
A48: D11 | B48: Tipo de operação para decolagem: | C48: =FORMULÁRIO!F30 -> VFR
A49: D12 | B49: Zona de parada: | C49: =FORMULÁRIO!F39 -> 0
A50: D13 | B50: Comprimento (m): | C50: =FORMULÁRIO!F40 -> 0
A51: D14 | B51: Largura (m): | C51: =FORMULÁRIO!F41 -> 0
A52: D15 | B52: Zona desimpedida: | C52: =FORMULÁRIO!F42 -> 0
A53: D16 | B53: Comprimento (m): | C53: =FORMULÁRIO!F43 -> 0
A54: D17 | B54: Largura (m): | C54: =FORMULÁRIO!F44 -> 0
A56: Características das Superfícies Limitadoras de Obstáculos
A58: E | B58: Superfície de Aproximação: | C58: CAB 1 | D58: CAB 2 | E58: CAB 3 | F58: CAB 4 | G58: CAB 5 | H58: CAB 6
A59: E1 | B59: Divergência lado direito (%): | C59: =FORMULÁRIO!C48 -> 0 | D59: =FORMULÁRIO!F48 -> 0
A60: E2 | B60: Divergência lado esquerdo (%): | C60: =FORMULÁRIO!C49 -> 0 | D60: =FORMULÁRIO!F49 -> 0
A61: E3 | B61: Comprimento total (m): | C61: =FORMULÁRIO!C50 -> 3000 | D61: =FORMULÁRIO!F50 -> 3000
B62: Primeira Seção
A63: E4 | B63: Largura da borda interna (m): | C63: =FORMULÁRIO!C52 -> 150 | D63: =FORMULÁRIO!F52 -> 150
A64: E5 | B64: Elevação da borda interna (m): | C64: =FORMULÁRIO!C53 -> 787.71 | D64: =FORMULÁRIO!F53 -> 786.379
A65: E6 | B65: Distância da cabeceira (m): | C65: =FORMULÁRIO!C54 -> 60 | D65: =FORMULÁRIO!F54 -> 60
A66: E7 | B66: Abertura total lado direito (%): | C66: =FORMULÁRIO!C55 -> 0.1 | D66: =FORMULÁRIO!F55 -> 0.1
A67: E8 | B67: Abertura total lado esquerdo (%): | C67: =FORMULÁRIO!C56 -> 0.1 | D67: =FORMULÁRIO!F56 -> 0.1
A68: E9 | B68: Comprimento (m): | C68: =FORMULÁRIO!C57 -> 3000 | D68: =FORMULÁRIO!F57 -> 3000
A69: E10 | B69: Gradiente (%): | C69: =FORMULÁRIO!C58 -> 0.0333 | D69: =FORMULÁRIO!F58 -> 0.0333
A70: E11 | B70: Elevação da borda externa (m): | C70: =FORMULÁRIO!C59 -> 887.61 | D70: =FORMULÁRIO!F59 -> 886.279
B71: Segunda Seção
A72: E12 | B72: Largura da borda interna (m): | C72: =FORMULÁRIO!C61 -> NA | D72: =FORMULÁRIO!F61 -> NA
A73: E13 | B73: Elevação da borda interna (m): | C73: =FORMULÁRIO!C62 -> NA | D73: =FORMULÁRIO!F62 -> NA
A74: E14 | B74: Abertura total lado direito (%): | C74: =FORMULÁRIO!C63 -> NA | D74: =FORMULÁRIO!F63 -> NA
A75: E15 | B75: Abertura total lado esquerdo (%): | C75: =FORMULÁRIO!C64 -> NA | D75: =FORMULÁRIO!F64 -> NA
A76: E16 | B76: Comprimento (m): | C76: =FORMULÁRIO!C65 -> NA | D76: =FORMULÁRIO!F65 -> NA
A77: E17 | B77: Gradiente (%): | C77: =FORMULÁRIO!C66 -> NA | D77: =FORMULÁRIO!F66 -> NA
A78: E18 | B78: Elevação da borda externa (m): | C78: =FORMULÁRIO!C67 -> NA | D78: =FORMULÁRIO!F67 -> NA
B79: Seção Horizontal
A80: E19 | B80: Largura da borda interna (m): | C80: =FORMULÁRIO!C69 -> NA | D80: =FORMULÁRIO!F69 -> NA
A81: E20 | B81: Abertura total lado direito (%): | C81: =FORMULÁRIO!C70 -> NA | D81: =FORMULÁRIO!F70 -> NA
A82: E21 | B82: Abertura total lado esquerdo (%): | C82: =FORMULÁRIO!C71 -> NA | D82: =FORMULÁRIO!F71 -> NA
A83: E22 | B83: Comprimento (m): | C83: =FORMULÁRIO!C72 -> NA | D83: =FORMULÁRIO!F72 -> NA
A84: E23 | B84: Elevação (m): | C84: =FORMULÁRIO!C73 -> NA | D84: =FORMULÁRIO!F73 -> NA
A85: F | B85: Superfície de Decolagem: | C85: CAB 1 | D85: CAB 2
A86: F1 | B86: Largura da borda interna (m): | C86: =FORMULÁRIO!C75 -> 180 | D86: =FORMULÁRIO!F75 -> 180
A87: F2 | B87: Elevação da borda interna (m): | C87: =FORMULÁRIO!C76 -> 786.379 | D87: =FORMULÁRIO!F76 -> 787.71
A88: F3 | B88: Distância da cabeceira oposta (m): | C88: =FORMULÁRIO!C77 -> 60 | D88: =FORMULÁRIO!F77 -> 60
A89: F4 | B89: Abertura para cada lado (%): | C89: =FORMULÁRIO!C78 -> 0.125 | D89: =FORMULÁRIO!F78 -> 0.125
A90: F5 | B90: Largura final (m): | C90: =FORMULÁRIO!C79 -> 1200 | D90: =FORMULÁRIO!F79 -> 1200
A91: F6 | B91: Comprimento (m): | C91: =FORMULÁRIO!C80 -> 15000 | D91: =FORMULÁRIO!F80 -> 15000
A92: F7 | B92: Gradiente (%): | C92: =FORMULÁRIO!C81 -> 0.02 | D92: =FORMULÁRIO!F81 -> 0.02
A93: F8 | B93: Elevação da borda externa (m): | C93: =FORMULÁRIO!C82 -> 1086.379 | D93: =FORMULÁRIO!F82 -> 1087.71
A94: G | B94: Superfície de Aprox. Interna: | C94: CAB 1 | D94: CAB 2
A95: G1 | B95: Largura da borda interna (m): | C95: =FORMULÁRIO!C84 -> NA | D95: =FORMULÁRIO!F84 -> NA
A96: G2 | B96: Elevação da borda interna (m): | C96: =FORMULÁRIO!C85 -> NA | D96: =FORMULÁRIO!F85 -> NA
A97: G3 | B97: Distância da cabeceira (m): | C97: =FORMULÁRIO!C86 -> NA | D97: =FORMULÁRIO!F86 -> NA
A98: G4 | B98: Abertura para cada lado (%): | C98: =FORMULÁRIO!C87 -> NA | D98: =FORMULÁRIO!F87 -> NA
A99: G5 | B99: Comprimento (m): | C99: =FORMULÁRIO!C88 -> NA | D99: =FORMULÁRIO!F88 -> NA
A100: G6 | B100: Gradiente (%): | C100: =FORMULÁRIO!C89 -> NA | D100: =FORMULÁRIO!F89 -> NA
A101: G7 | B101: Elevação da borda externa (m): | C101: =FORMULÁRIO!C90 -> NA | D101: =FORMULÁRIO!F90 -> NA
A102: H | B102: Superfície de Transição Interna: | C102: CAB 1 | D102: CAB 2
A103: H1 | B103: Gradiente (%): | C103: =FORMULÁRIO!C92 -> NA | D103: =FORMULÁRIO!F92 -> NA
A104: H2 | B104: Elevação da borda superior (m): | C104: =FORMULÁRIO!C93 -> NA | D104: =FORMULÁRIO!F93 -> NA
A105: I | B105: Superfície de Pouso Interrompido: | C105: CAB 1 | D105: CAB 2
A106: I1 | B106: Largura da borda interna (m): | C106: =FORMULÁRIO!C95 -> NA | D106: =FORMULÁRIO!F95 -> NA
A107: I2 | B107: Elevação da borda interna (m): | C107: =FORMULÁRIO!C96 -> NA | D107: =FORMULÁRIO!F96 -> NA
A108: I3 | B108: Distância da cabeceira (m): | C108: =FORMULÁRIO!C97 -> NA | D108: =FORMULÁRIO!F97 -> NA
A109: I4 | B109: Abertura para cada lado (%): | C109: =FORMULÁRIO!C98 -> NA | D109: =FORMULÁRIO!F98 -> NA
A110: I5 | B110: Gradiente (%): | C110: =FORMULÁRIO!C99 -> NA | D110: =FORMULÁRIO!F99 -> NA
A111: I6 | B111: Elevação da borda externa (m): | C111: =FORMULÁRIO!C100 -> NA | D111: =FORMULÁRIO!F100 -> NA
A112: J | B112: Superfície de Transição: | C112: Pista 1 | E112: Pista 2 | G112: Pista 3
A113: J1 | B113: Gradiente (%): | C113: =FORMULÁRIO!C102 -> 0.143
A114: K | B114: Superfície Horizontal Interna: | C114: Pista 1
A115: K1 | B115: Altitude (m): | C115: =FORMULÁRIO!C104 -> 832.71
A116: K2 | B116: Raio (m) | C116: =FORMULÁRIO!C105 -> 4000
A117: L | B117: Superfície Cônica: | C117: Pista 1
A118: L1 | B118: Altitude (m): | C118: =FORMULÁRIO!C107 -> 907.71
A119: L2 | B119: Gradiente (%): | C119: =FORMULÁRIO!C108 -> 0.05
A120: M | B120: Superfície Horizontal Externa: | C120: Pista 1
A121: M1 | B121: Raio (m): | C121: =FORMULÁRIO!C110 -> NA
A122: M2 | B122: Altitude (m): | C122: =FORMULÁRIO!C111 -> NA
A123: N | B123: Superfície de Prot Voo Visual: | C123: Pista 1
A124: N1 | B124: Área 1: | C124: =FORMULÁRIO!C113 -> Aplicável
A125: N2 | B125: Largura (m): | C125: =FORMULÁRIO!C114 -> 2350
A126: N3 | B126: Buffer (m): | C126: =FORMULÁRIO!C115 -> 470
A127: N4 | B127: Comprimento (m): | C127: =FORMULÁRIO!C116 -> 2350
C128: CAB 1 | D128: CAB 2 | E128: CAB 3 | F128: CAB 4 | G128: CAB 5 | H128: CAB 6
A129: N5 | B129: Altitude seção de través (m): | C129: =FORMULÁRIO!C118 -> 863.5090734 | D129: =FORMULÁRIO!F118 -> 863.5090734
A130: N6 | B130: Altitude seção de aprox/dep (m): | C130: =FORMULÁRIO!C119 -> 840.6487954 | D130: =FORMULÁRIO!F119 -> 840.6487954
C131: CAB 1 | D131: CAB 2
A132: N7 | B132: Curvas: | C132: =FORMULÁRIO!C121 -> Ambas | D132: =FORMULÁRIO!F121 -> Ambas
A133: N8 | B133: Altura mínima do circuito de tráfego: | C133: =FORMULÁRIO!C122 -> 152 | D133: =FORMULÁRIO!F122 -> 152
C134: Pista 1 | E134: Pista 2 | G134: Pista 3
A135: N9 | B135: Área 2: | C135: =FORMULÁRIO!C124 -> Aplicável
A136: N10 | B136: Categoria de performance crítica: | C136: =FORMULÁRIO!C125 -> C
A137: N11 | B137: Largura (m): | C137: =FORMULÁRIO!C126 -> 4170
A138: N12 | B138: Buffer (m): | C138: =FORMULÁRIO!C127 -> 930
A139: N13 | B139: Comprimento (m): | C139: =FORMULÁRIO!C128 -> 4170
C140: CAB 1 | D140: CAB 2 | E140: CAB 3 | F140: CAB 4 | G140: CAB 5 | H140: CAB 6
A141: N14 | B141: Altitude seção través (m): | C141: =FORMULÁRIO!C130 -> 940.3081468 | D141: =FORMULÁRIO!F130 -> 940.3081468
A142: N15 | B142: Altitude seção aprox/dep (m): | C142: =FORMULÁRIO!C131 -> 894.5875908 | D142: =FORMULÁRIO!F131 -> 894.5875908
C143: CAB 1 | D143: CAB 2 | E143: CAB 3 | F143: CAB 4 | G143: CAB 5 | H143: CAB 6
A144: N16 | B144: Curvas: | C144: =FORMULÁRIO!C133 -> Ambas | D144: =FORMULÁRIO!F133 -> Ambas | E144: =FORMULÁRIO!I133 -> 0 | F144: =FORMULÁRIO!L133 -> 0 | G144: =FORMULÁRIO!O133 -> 0 | H144: =FORMULÁRIO!R133 -> 0
A145: N17 | B145: Altura mínima do circ. de tráfego: | C145: =FORMULÁRIO!C134 -> 305 | D145: =FORMULÁRIO!F134 -> 305 | E145: =FORMULÁRIO!I134 -> 0 | F145: =FORMULÁRIO!L134 -> 0 | G145: =FORMULÁRIO!O134 -> 0 | H145: =FORMULÁRIO!R134 -> 0
C146: Pista 1 | E146: Pista 2 | G146: Pista 3
A147: N18 | B147: Área 3: | C147: =FORMULÁRIO!C136 -> NA
A148: N19 | B148: Largura (m): | C148: =FORMULÁRIO!C137 -> NA
A149: N20 | B149: Buffer (m): | C149: =FORMULÁRIO!C138 -> NA
A150: N21 | B150: Comprimento (m): | C150: =FORMULÁRIO!C139 -> NA
A151: N22 | B151: Altitude seção través (m): | C151: =FORMULÁRIO!C140 -> NA
A152: N23 | B152: Altitude seção aprox/dep (m): | C152: =FORMULÁRIO!C141 -> NA
C153: CAB 1 | D153: CAB 2 | E153: CAB 3 | F153: CAB 4 | G153: CAB 5 | H153: CAB 6
A154: N24 | B154: Curvas: | C154: =FORMULÁRIO!C143 -> 0 | D154: =FORMULÁRIO!F143 -> 0

Sheet FORMULÁRIO (hidden)
B2: Dados Gerais do Aeródromo:
AA4: =IF(AA5<180,AA5+180,AA5-180) -> 238.902928 | AB4: =IF(AB5<180,AB5+180,AB5-180) -> 180 | AC4: =IF(AC5<180,AC5+180,AC5-180) -> 180
W5: SIM | X5: Diurno | Y5: 1 | Z5: A | AA5: =calculo!C2 -> 58.90292795 | AB5: =calculo!C14 -> 0 | AC5: =calculo!C26 -> 0 | AD5: Pouso | AE5: NA | AF5: Aplicável | AG5: 75 | AH5: Esquerda | AI5: 152 | AJ5: 305
W6: NÃO | X6: Noturno | Y6: 2 | Z6: B | AA6: =AA5-INT(AA5) -> 0.9029279541 | AB6: =AB5-INT(AB5) -> 0 | AC6: =AC5-INT(AC5) -> 0 | AD6: Decolagem | AE6: VFR | AF6: NA | AG6: 90 | AH6: Direita | AI6: 183 | AJ6: 335
B7: Elevação: | C7: =IF(O15=0,IF(I15=0,C15,MAX(C16:T16)),MAX(C16:T16)) -> 787.71 | W7: =AE5 -> NA | X7: Diurno e Noturno | Y7: 3 | Z7: C | AA7: =AA6*60 -> 54.17567725 | AB7: =AB6*60 -> 0 | AC7: =AC6*60 -> 0 | AD7: Pouso e Decolagem | AE7: IFR NPA | AH7: Ambas | AI7: NA | AJ7: 366
B8: Declinação magnética | C8: 18.82 | Y8: 4 | Z8: D | AA8: =(AA7-INT(AA7))*60 -> 10.54063475 | AB8: =(AB7-INT(AB7))*60 -> 0 | AC8: =(AC7-INT(AC7))*60 -> 0 | AE8: IFR PA CAT I | AH8: NA | AJ8: 396
B9: Dados Gerais da(s) Pista(s): | C9: PISTA 1 | I9: PISTA 2 | O9: PISTA 3 | Y9: NA | Z9: E | AA9: =(AA5-$C$8)/10 -> 4.008292795 | AB9: =(AB5-$C$8)/10 -> -1.882 | AC9: =(AC5-$C$8)/10 -> -1.882 | AE9: IFR PA CAT II | AJ9: 427
B10: Designação: | C10: =C20 -> 4.008292795 | I10: =I20 -> -1.882 | O10: =O20 -> -1.882 | Z10: F | AE10: IFR PA CAT IIIa | AJ10: 457
C11: =F20 -> 22.0082928 | I11: =L20 -> 16.118 | O11: =R20 -> 16.118 | Z11: A | AE11: IFR PA CAT IIIb | AJ11: NA
B12: Código de Referência do Aeródromo: | C12: =MAX(C26,F26,C29,F29) -> 3 | F12: C | I12: =MAX(I26,L26,I29,L29) -> 0 | O12: =MAX(O26,R26,O29,R29) -> 0 | Z12: B | AE12: IFR PA CAT IIIc
B13: Comprimento: | C13: =calculo!B2 -> 1280.423186 | I13: =calculo!B14 -> 0.1 | O13: =calculo!B26 -> 0.1 | Z13: C
B14: Largura: | C14: 30 | Z14: NA
B15: Maior elevação da pista | C15: 787.71
B16: Largura da Faixa de Pista (m): | C16: =PISTA!B8 -> 150 | I16: =PISTA!C8 -> 150 | O16: =PISTA!D8 -> 150
B17: Comprimento da Faixa de Pista (m): | C17: =PISTA!B9 -> 1400.423186 | I17: =PISTA!C9 -> 120.1 | O17: =PISTA!D9 -> 120.1
B18: Período de Operação: | C18: Diurno e Noturno
F19: Cabeceira MAIOR: | L19: Cabeceira MAIOR: | R19: Cabeceira MAIOR:
B20: Designação | C20: =IF(AA5-C8>359.999999,AA9-36,AA9) -> 4.008292795 | F20: =C20+18 -> 22.0082928 | I20: =IF(AB5-C8>359.999999,AB9-36,AB9) -> -1.882 | L20: =I20+18 -> 16.118 | O20: =IF(AC5-C8>359.999999,AC9-36,AC9) -> -1.882 | R20: =O20+18 -> 16.118
B21: Rumo verdadeiro | C21: =INT(AA5) -> 58 | D21: =INT(AA7) -> 54 | E21: =AA8 -> 10.54063475 | F21: =IF(C21<180,C21+180,C21-180) -> 238 | G21: =D21 -> 54 | H21: =E21 -> 10.54063475 | I21: =INT(AB5) -> 0 | J21: =INT(AB7) -> 0 | K21: =AB8 -> 0 | L21: =IF(I21<180,I21+180,I21-180) -> 180 | M21: =J21 -> 0 | N21: =K21 -> 0 | O21: =INT(AC5) -> 0 | P21: =INT(AC7) -> 0 | Q21: =AC8 -> 0 | R21: =IF(O21<180,O21+180,O21-180) -> 180 | S21: =P21 -> 0 | T21: =Q21 -> 0
B22: Coordenadas geográficas (latitude): | C22: 25 | D22: 11 | E22: 13.41 | F22: 25 | G22: 10 | H22: 51.91
B23: Coordenadas geográficas (longitude): | C23: 50 | D23: 8 | E23: 55.02 | F23: 50 | G23: 8 | H23: 15.87
B24: Elevação: | C24: 787.71 | F24: 786.379
B25: Tipo de utilização: | C25: Pouso e Decolagem | F25: Pouso e Decolagem
B26: Código de Referência para POUSO: | C26: 3 | F26: 3
B27: Tipo de operação para POUSO: | C27: VFR | F27: VFR
B28: =IF(OR(C27="VFR",C27="IFR NPA",C27="NÃO APLICÁVEL"),"NÃO APLICÁVEL","Elevação da borda interna da superfície de pouso interrompido:") -> NÃO APLICÁVEL | C28: ='POUSO INTERROMPIDO'!B9 -> NA | D28: =IF(OR(C27="VFR",C27="IFR NPA",C27="NÃO APLICÁVEL"),"NA","da CAB:") -> NA | F28: ='POUSO INTERROMPIDO'!E9 -> NA | G28: =IF(OR(F27="VFR",F27="IFR NPA",F27="NÃO APLICÁVEL"),"NA","da CAB:") -> NA | I28: ='POUSO INTERROMPIDO'!H9 -> 180.1 | J28: =IF(OR(I27="VFR",I27="IFR NPA",I27="NÃO APLICÁVEL"),"NA","da CAB:") -> da CAB: | L28: ='POUSO INTERROMPIDO'!K9 -> 180.1 | M28: =IF(OR(L27="VFR",L27="IFR NPA",L27="NÃO APLICÁVEL"),"NA","da CAB:") -> da CAB: | O28: ='POUSO INTERROMPIDO'!N9 -> 180.1 | P28: =IF(OR(O27="VFR",O27="IFR NPA",O27="NÃO APLICÁVEL"),"NA","da CAB:") -> da CAB: | R28: ='POUSO INTERROMPIDO'!Q9 -> 180.1 | S28: =IF(OR(R27="VFR",R27="IFR NPA",R27="NÃO APLICÁVEL"),"NA","da CAB:") -> da CAB:
B29: Código de Referência para DECOLAGEM: | C29: 3 | F29: 3
B30: Tipo de operação para DECOLAGEM: | C30: VFR | F30: VFR
B31: Possui Saída por Instrumentos em curva? | C31: NÃO | F31: NÃO
B32: PROCEDIMENTOS DE NAVEGAÇÃO AÉREA: | C32: Cabeceira MENOR: | F32: Cabeceira MAIOR: | I32: Cabeceira MENOR: | O32: Cabeceira MENOR: | R32: Cabeceira MAIOR:
B33: OCH:
B34: Separação de obstáculos (MOC):
B35: Rumo da Aproximação Final:
B36: OCH:
B37: Separação de obstáculos (MOC):
B38: Rumo da Aproximação Final:
B39: Zona de parada (STOPWAY)
B40: Comprimento:
B41: Largura:
B42: Zona desimpedida (CLEARWAY):
B43: Comprimento:
B44: Largura:
B45: Maior elevação da Faixa de Pista oposta ou da CLEARWAY:
B47: Superfície de Aproximação: | C47: CAB 1 | F47: CAB 2 | I47: CAB 3 | L47: CAB 4 | O47: CAB 5 | R47: CAB 6
B48: Divergência lado direito (%): | C48: =APROX!B12 -> 0 | F48: =APROX!E12 -> 0 | I48: =APROX!H12 -> 0 | L48: =APROX!K12 -> 0 | O48: =APROX!N12 -> 0 | R48: =APROX!Q12 -> 0
B49: Divergência lado esquerdo (%): | C49: =APROX!B13 -> 0 | F49: =APROX!E13 -> 0 | I49: =APROX!H13 -> 0 | L49: =APROX!K13 -> 0 | O49: =APROX!N13 -> 0 | R49: =APROX!Q13 -> 0
B50: Comprimento total (m): | C50: =APROX!B14 -> 3000 | F50: =APROX!E14 -> 3000 | I50: =APROX!H14 -> 15000 | L50: =APROX!K14 -> 15000 | O50: =APROX!N14 -> 15000 | R50: =APROX!Q14 -> 15000
B51: Primeira Seção
B52: Largura da borda interna (m): | C52: =APROX!B16 -> 150 | F52: =APROX!E16 -> 150 | I52: =APROX!H16 -> 150 | L52: =APROX!K16 -> 150 | O52: =APROX!N16 -> 150 | R52: =APROX!Q16 -> 150
B53: Elevação da borda interna (m): | C53: =APROX!B17 -> 787.71 | F53: =APROX!E17 -> 786.379 | I53: =APROX!H17 -> 0 | L53: =APROX!K17 -> 0 | O53: =APROX!N17 -> 0 | R53: =APROX!Q17 -> 0
B54: Distância da cabeceira (m): | C54: =APROX!B18 -> 60 | F54: =APROX!E18 -> 60 | I54: =APROX!H18 -> 60 | L54: =APROX!K18 -> 60 | O54: =APROX!N18 -> 60 | R54: =APROX!Q18 -> 60
B55: Abertura total lado direito (%): | C55: =APROX!B19 -> 0.1 | F55: =APROX!E19 -> 0.1 | I55: =APROX!H19 -> 0.15 | L55: =APROX!K19 -> 0.15 | O55: =APROX!N19 -> 0.15 | R55: =APROX!Q19 -> 0.15
B56: Abertura total lado esquerdo (%): | C56: =APROX!B20 -> 0.1 | F56: =APROX!E20 -> 0.1 | I56: =APROX!H20 -> 0.15 | L56: =APROX!K20 -> 0.15 | O56: =APROX!N20 -> 0.15 | R56: =APROX!Q20 -> 0.15
B57: Comprimento (m): | C57: =APROX!B21 -> 3000 | F57: =APROX!E21 -> 3000 | I57: =APROX!H21 -> 3000 | L57: =APROX!K21 -> 3000 | O57: =APROX!N21 -> 3000 | R57: =APROX!Q21 -> 3000
B58: Gradiente (%): | C58: =APROX!B22 -> 0.0333 | F58: =APROX!E22 -> 0.0333 | I58: =APROX!H22 -> 0.025 | L58: =APROX!K22 -> 0.025 | O58: =APROX!N22 -> 0.025 | R58: =APROX!Q22 -> 0.025
B59: Elevação da borda externa (m): | C59: =APROX!B23 -> 887.61 | F59: =APROX!E23 -> 886.279 | I59: =APROX!H23 -> 75 | L59: =APROX!K23 -> 75 | O59: =APROX!N23 -> 75 | R59: =APROX!Q23 -> 75
B60: Segunda Seção
B61: Largura da borda interna (m): | C61: =APROX!B25 -> NA | F61: =APROX!E25 -> NA | I61: =APROX!H25 -> 1050 | L61: =APROX!K25 -> 1050 | O61: =APROX!N25 -> 1050 | R61: =APROX!Q25 -> 1050
B62: Elevação da borda interna (m): | C62: =APROX!B26 -> NA | F62: =APROX!E26 -> NA | I62: =APROX!H26 -> 75 | L62: =APROX!K26 -> 75 | O62: =APROX!N26 -> 75 | R62: =APROX!Q26 -> 75
B63: Abertura total lado direito (%): | C63: =APROX!B27 -> NA | F63: =APROX!E27 -> NA | I63: =APROX!H27 -> 0.15 | L63: =APROX!K27 -> 0.15 | O63: =APROX!N27 -> 0.15 | R63: =APROX!Q27 -> 0.15
B64: Abertura total lado esquerdo (%): | C64: =APROX!B28 -> NA | F64: =APROX!E28 -> NA | I64: =APROX!H28 -> 0.15 | L64: =APROX!K28 -> 0.15 | O64: =APROX!N28 -> 0.15 | R64: =APROX!Q28 -> 0.15
B65: Comprimento (m): | C65: =APROX!B29 -> NA | F65: =APROX!E29 -> NA | I65: =APROX!H29 -> 3600 | L65: =APROX!K29 -> 3600 | O65: =APROX!N29 -> 3600 | R65: =APROX!Q29 -> 3600
B66: Gradiente (%): | C66: =APROX!B30 -> NA | F66: =APROX!E30 -> NA | I66: =APROX!H30 -> 0.03 | L66: =APROX!K30 -> 0.03 | O66: =APROX!N30 -> 0.03 | R66: =APROX!Q30 -> 0.03
B67: Elevação da borda externa (m): | C67: =APROX!B31 -> NA | F67: =APROX!E31 -> NA | I67: =APROX!H31 -> 183 | L67: =APROX!K31 -> 183 | O67: =APROX!N31 -> 183 | R67: =APROX!Q31 -> 183
B68: Seção Horizontal
B69: Largura da borda interna (m): | C69: =APROX!B33 -> NA | F69: =APROX!E33 -> NA | I69: =APROX!H33 -> 2130 | L69: =APROX!K33 -> 2130 | O69: =APROX!N33 -> 2130 | R69: =APROX!Q33 -> 2130
B70: Abertura total lado direito (%): | C70: =APROX!B34 -> NA | F70: =APROX!E34 -> NA | I70: =APROX!H34 -> 0.15 | L70: =APROX!K34 -> 0.15 | O70: =APROX!N34 -> 0.15 | R70: =APROX!Q34 -> 0.15
B71: Abertura total lado esquerdo (%): | C71: =APROX!B35 -> NA | F71: =APROX!E35 -> NA | I71: =APROX!H35 -> 0.15 | L71: =APROX!K35 -> 0.15 | O71: =APROX!N35 -> 0.15 | R71: =APROX!Q35 -> 0.15
B72: Comprimento (m): | C72: =APROX!B36 -> NA | F72: =APROX!E36 -> NA | I72: =APROX!H36 -> NA | L72: =APROX!K36 -> NA | O72: =APROX!N36 -> NA | R72: =APROX!Q36 -> NA
B73: Elevação (m): | C73: =APROX!B37 -> NA | F73: =APROX!E37 -> NA | I73: =APROX!H37 -> 183 | L73: =APROX!K37 -> 183 | O73: =APROX!N37 -> 183 | R73: =APROX!Q37 -> 183
B74: Superfície de Decolagem: | C74: CAB 1 | F74: CAB 2 | I74: CAB 3 | L74: CAB 4 | O74: CAB 5 | R74: CAB 6
B75: Largura da borda interna (m): | C75: =DEC!B7 -> 180 | F75: =DEC!E7 -> 180 | I75: =DEC!H7 -> 180 | L75: =DEC!K7 -> 180 | O75: =DEC!N7 -> 180 | R75: =DEC!Q7 -> 180
B76: Elevação da borda interna (m): | C76: =DEC!B8 -> 786.379 | F76: =DEC!E8 -> 787.71 | I76: =DEC!H8 -> 0 | L76: =DEC!K8 -> 0 | O76: =DEC!N8 -> 0 | R76: =DEC!Q8 -> 0
B77: Distância do final da pista (m): | C77: =DEC!B9 -> 60 | F77: =DEC!E9 -> 60 | I77: =DEC!H9 -> 60 | L77: =DEC!K9 -> 60 | O77: =DEC!N9 -> 60 | R77: =DEC!Q9 -> 60
B78: Abertura para cada lado (%): | C78: =DEC!B10 -> 0.125 | F78: =DEC!E10 -> 0.125 | I78: =DEC!H10 -> 0.1 | L78: =DEC!K10 -> 0.1 | O78: =DEC!N10 -> 0.1 | R78: =DEC!Q10 -> 0.1
B79: Largura final (m): | C79: =DEC!B11 -> 1200 | F79: =DEC!E11 -> 1200 | I79: =DEC!H11 -> 1200 | L79: =DEC!K11 -> 1200 | O79: =DEC!N11 -> 1200 | R79: =DEC!Q11 -> 1200
B80: Comprimento (m): | C80: =DEC!B12 -> 15000 | F80: =DEC!E12 -> 15000 | I80: =DEC!H12 -> 15000 | L80: =DEC!K12 -> 15000 | O80: =DEC!N12 -> 15000 | R80: =DEC!Q12 -> 15000
B81: Gradiente (%): | C81: =DEC!B13 -> 0.02 | F81: =DEC!E13 -> 0.02 | I81: =DEC!H13 -> 0.04 | L81: =DEC!K13 -> 0.04 | O81: =DEC!N13 -> 0.04 | R81: =DEC!Q13 -> 0.04
B82: Elevação da borda externa (m): | C82: =DEC!B14 -> 1086.379 | F82: =DEC!E14 -> 1087.71 | I82: =DEC!H14 -> 600 | L82: =DEC!K14 -> 600 | O82: =DEC!N14 -> 600 | R82: =DEC!Q14 -> 600
B83: Superfície de Aprox. Interna: | C83: CAB 1 | F83: CAB 2 | I83: CAB 3 | L83: CAB 4 | O83: CAB 5 | R83: CAB 6
B84: Largura da borda interna (m): | C84: ='APROX INTERNA'!B6 -> NA | F84: ='APROX INTERNA'!E6 -> NA | I84: ='APROX INTERNA'!H6 -> 90 | L84: ='APROX INTERNA'!K6 -> 90 | O84: ='APROX INTERNA'!N6 -> 90 | R84: ='APROX INTERNA'!Q6 -> 90
B85: Elevação da borda interna (m): | C85: ='APROX INTERNA'!B7 -> NA | F85: ='APROX INTERNA'!E7 -> NA | I85: ='APROX INTERNA'!H7 -> 0 | L85: ='APROX INTERNA'!K7 -> 0 | O85: ='APROX INTERNA'!N7 -> 0 | R85: ='APROX INTERNA'!Q7 -> 0
B86: Distância da cabeceira (m): | C86: ='APROX INTERNA'!B8 -> NA | F86: ='APROX INTERNA'!E8 -> NA | I86: ='APROX INTERNA'!H8 -> 60 | L86: ='APROX INTERNA'!K8 -> 60 | O86: ='APROX INTERNA'!N8 -> 60 | R86: ='APROX INTERNA'!Q8 -> 60
B87: Abertura para cada lado (%): | C87: ='APROX INTERNA'!B9 -> NA | F87: ='APROX INTERNA'!E9 -> NA | I87: ='APROX INTERNA'!H9 -> PARALELA | L87: ='APROX INTERNA'!K9 -> PARALELA | O87: ='APROX INTERNA'!N9 -> PARALELA | R87: ='APROX INTERNA'!Q9 -> PARALELA
B88: Comprimento (m): | C88: ='APROX INTERNA'!B10 -> NA | F88: ='APROX INTERNA'!E10 -> NA | I88: ='APROX INTERNA'!H10 -> 900 | L88: ='APROX INTERNA'!K10 -> 900 | O88: ='APROX INTERNA'!N10 -> 900 | R88: ='APROX INTERNA'!Q10 -> 900
B89: Gradiente (%): | C89: ='APROX INTERNA'!B11 -> NA | F89: ='APROX INTERNA'!E11 -> NA | I89: ='APROX INTERNA'!H11 -> 0.025 | L89: ='APROX INTERNA'!K11 -> 0.025 | O89: ='APROX INTERNA'!N11 -> 0.025 | R89: ='APROX INTERNA'!Q11 -> 0.025
B90: Elevação da borda externa (m): | C90: ='APROX INTERNA'!B12 -> NA | F90: ='APROX INTERNA'!E12 -> NA | I90: ='APROX INTERNA'!H12 -> 22.5 | L90: ='APROX INTERNA'!K12 -> 22.5 | O90: ='APROX INTERNA'!N12 -> 22.5 | R90: ='APROX INTERNA'!Q12 -> 22.5
B91: Superfície de Transição Interna: | C91: CAB 1 | F91: CAB 2 | I91: CAB 3 | L91: CAB 4 | O91: CAB 5 | R91: CAB 6
B92: Gradiente (%): | C92: ='TRANSIÇÃO INTERNA'!B6 -> NA | F92: ='TRANSIÇÃO INTERNA'!E6 -> NA | I92: ='TRANSIÇÃO INTERNA'!H6 -> 0.4 | L92: ='TRANSIÇÃO INTERNA'!K6 -> 0.4 | O92: ='TRANSIÇÃO INTERNA'!N6 -> 0.4 | R92: ='TRANSIÇÃO INTERNA'!Q6 -> 0.4
B93: Elevação da borda superior (m): | C93: ='TRANSIÇÃO INTERNA'!B7 -> NA | F93: ='TRANSIÇÃO INTERNA'!E7 -> NA | I93: ='TRANSIÇÃO INTERNA'!H7 -> 832.71 | L93: ='TRANSIÇÃO INTERNA'!K7 -> 832.71 | O93: ='TRANSIÇÃO INTERNA'!N7 -> 832.71 | R93: ='TRANSIÇÃO INTERNA'!Q7 -> 832.71
B94: Superfície de Pouso Interrompido: | C94: CAB 1 | F94: CAB 2 | I94: CAB 3 | L94: CAB 4 | O94: CAB 5 | R94: CAB 6
B95: Largura da borda interna (m): | C95: ='POUSO INTERROMPIDO'!B7 -> NA | F95: ='POUSO INTERROMPIDO'!E7 -> NA | I95: ='POUSO INTERROMPIDO'!H7 -> 90 | L95: ='POUSO INTERROMPIDO'!K7 -> 90 | O95: ='POUSO INTERROMPIDO'!N7 -> 90 | R95: ='POUSO INTERROMPIDO'!Q7 -> 90
B96: Elevação da borda interna (m): | C96: ='POUSO INTERROMPIDO'!B8 -> NA | F96: ='POUSO INTERROMPIDO'!E8 -> NA | I96: ='POUSO INTERROMPIDO'!H8 -> 0 | L96: ='POUSO INTERROMPIDO'!K8 -> 0 | O96: ='POUSO INTERROMPIDO'!N8 -> 0 | R96: ='POUSO INTERROMPIDO'!Q8 -> 0
B97: Distância da cabeceira (m): | C97: ='POUSO INTERROMPIDO'!B9 -> NA | F97: ='POUSO INTERROMPIDO'!E9 -> NA | I97: ='POUSO INTERROMPIDO'!H9 -> 180.1 | L97: ='POUSO INTERROMPIDO'!K9 -> 180.1 | O97: ='POUSO INTERROMPIDO'!N9 -> 180.1 | R97: ='POUSO INTERROMPIDO'!Q9 -> 180.1
B98: Abertura para cada lado (%): | C98: ='POUSO INTERROMPIDO'!B10 -> NA | F98: ='POUSO INTERROMPIDO'!E10 -> NA | I98: ='POUSO INTERROMPIDO'!H10 -> 0.1 | L98: ='POUSO INTERROMPIDO'!K10 -> 0.1 | O98: ='POUSO INTERROMPIDO'!N10 -> 0.1 | R98: ='POUSO INTERROMPIDO'!Q10 -> 0.1
B99: Gradiente (%): | C99: ='POUSO INTERROMPIDO'!B11 -> NA | F99: ='POUSO INTERROMPIDO'!E11 -> NA | I99: ='POUSO INTERROMPIDO'!H11 -> 0.04 | L99: ='POUSO INTERROMPIDO'!K11 -> 0.04 | O99: ='POUSO INTERROMPIDO'!N11 -> 0.04 | R99: ='POUSO INTERROMPIDO'!Q11 -> 0.04
B100: Elevação da borda externa (m): | C100: ='POUSO INTERROMPIDO'!B12 -> NA | F100: ='POUSO INTERROMPIDO'!E12 -> NA | I100: ='POUSO INTERROMPIDO'!H12 -> 832.71 | L100: ='POUSO INTERROMPIDO'!K12 -> 832.71 | O100: ='POUSO INTERROMPIDO'!N12 -> 832.71 | R100: ='POUSO INTERROMPIDO'!Q12 -> 832.71
B101: Superfície de Transição: | C101: Pista 1 | I101: Pista 2 | O101: Pista 3
B102: Gradiente (%): | C102: =TRANSIÇÃO!B5 -> 0.143 | I102: =TRANSIÇÃO!C5 -> 0.2 | O102: =TRANSIÇÃO!D5 -> 0.2
B103: Superfície Horizontal Interna: | C103: Pista 1 | I103: Pista 2 | O103: Pista 3
B104: Altitude (m): | C104: ='HORIZONTAL INTERNA'!B4 -> 832.71 | I104: ='HORIZONTAL INTERNA'!C4 -> 832.71 | O104: ='HORIZONTAL INTERNA'!D4 -> 832.71
B105: Raio (m) | C105: ='HORIZONTAL INTERNA'!B5 -> 4000 | I105: ='HORIZONTAL INTERNA'!C5 -> 3500 | O105: ='HORIZONTAL INTERNA'!D5 -> 3500
B106: Superfície Cônica: | C106: Pista 1 | I106: Pista 2 | O106: Pista 3
B107: Altitude (m): | C107: =CÔNICA!B4 -> 907.71 | I107: =CÔNICA!C4 -> 832.71 | O107: =CÔNICA!D4 -> 832.71
B108: Gradiente (%): | C108: =CÔNICA!B5 -> 0.05 | I108: =CÔNICA!C5 -> 0.05 | O108: =CÔNICA!D5 -> 0.05
B109: Superfície de Prot voo IFR: | C109: Pista 1 | I109: Pista 2 | O109: Pista 3
B110: Raio (m): | C110: =IF(AND(C27="VFR",C30="VFR",F27="VFR",F30="VFR"),"NA",20000) -> NA | I110: =IF(AND(I27="VFR",I30="VFR",L27="VFR",L30="VFR"),"NA",20000) -> 20000 | O110: =IF(AND(O27="VFR",O30="VFR",R27="VFR",R30="VFR"),"NA",20000) -> 20000
B111: Altitude (m): | C111: =IF(C110="NA","NA",$C$7+150) -> NA | I111: =IF(I110="NA","NA",$C$7+150) -> 937.71 | O111: =IF(O110="NA","NA",$C$7+150) -> 937.71
B112: Superfície de Prot Voo Visual: | C112: Pista 1 | I112: Pista 2 | O112: Pista 3
B113: Área 1: | C113: Aplicável
B114: Largura (m): | C114: =SPVV!B1 -> 2350 | I114: =SPVV!H1 -> NA | O114: =SPVV!N1 -> NA
B115: Buffer (m): | C115: =SPVV!B2 -> 470 | I115: =SPVV!H2 -> NA | O115: =SPVV!N2 -> NA
B116: Comprimento (m): | C116: =SPVV!B3 -> 2350 | I116: =SPVV!H3 -> NA | O116: =SPVV!N3 -> NA
C117: CAB 1 | F117: CAB 2 | I117: CAB 3 | L117: CAB 4 | O117: CAB 5 | R117: CAB 6
B118: Altitude seção de través (m): | C118: =SPVV!B5 -> 863.5090734 | F118: =SPVV!E5 -> 863.5090734 | I118: =SPVV!H5 -> NA | L118: =SPVV!K5 -> NA | O118: =SPVV!N5 -> NA | R118: =SPVV!Q5 -> NA
B119: Altitude seção de aprox/dep (m): | C119: =SPVV!B6 -> 840.6487954 | F119: =SPVV!E6 -> 840.6487954 | I119: =SPVV!H6 -> NA | L119: =SPVV!K6 -> NA | O119: =SPVV!N6 -> NA | R119: =SPVV!Q6 -> NA
C120: CAB 1 | F120: CAB 2 | I120: CAB 3 | L120: CAB 4 | O120: CAB 5 | R120: CAB 6
B121: Curvas permitidas no circuito de tráfego: | C121: Ambas | F121: Ambas
B122: Altura mínima do circuito de tráfego: | C122: 152 | F122: 152
C123: Pista 1 | I123: Pista 2 | O123: Pista 3
B124: Área 2: | C124: Aplicável
B125: Categoria de performance crítica: | C125: C
B126: Largura (m): | C126: =SPVV!B10 -> 4170 | I126: =SPVV!H10 -> NA | O126: =SPVV!N10 -> NA
B127: Buffer (m): | C127: =SPVV!B11 -> 930 | I127: =SPVV!H11 -> NA | O127: =SPVV!N11 -> NA
B128: Comprimento (m): | C128: =SPVV!B12 -> 4170 | I128: =SPVV!H12 -> NA | O128: =SPVV!N12 -> NA
C129: CAB 1 | F129: CAB 2 | I129: CAB 3 | L129: CAB 4 | O129: CAB 5 | R129: CAB 6
B130: Altitude seção través (m): | C130: =SPVV!B14 -> 940.3081468 | F130: =SPVV!E14 -> 940.3081468 | I130: =SPVV!H14 -> NA | L130: =SPVV!K14 -> NA | O130: =SPVV!N14 -> NA | R130: =SPVV!Q14 -> NA
B131: Altitude seção aprox/dep (m): | C131: =SPVV!B15 -> 894.5875908 | F131: =SPVV!E15 -> 894.5875908 | I131: =SPVV!H15 -> NA | L131: =SPVV!K15 -> NA | O131: =SPVV!N15 -> NA | R131: =SPVV!Q15 -> NA
C132: CAB 1 | F132: CAB 2 | I132: CAB 3 | L132: CAB 4 | O132: CAB 5 | R132: CAB 6
B133: Curvas permitidas no circuito de tráfego: | C133: Ambas | F133: Ambas
B134: Altura mínima do circ. de tráfego: | C134: 305 | F134: 305
C135: Pista 1 | I135: Pista 2 | O135: Pista 3
B136: Área 3: | C136: NA
B137: Largura (m): | C137: =SPVV!B16 -> NA | I137: =SPVV!H16 -> NA | O137: =SPVV!N16 -> NA
B138: Buffer (m): | C138: =SPVV!B17 -> NA | I138: =SPVV!H17 -> NA | O138: =SPVV!N17 -> NA
B139: Comprimento (m): | C139: =SPVV!B18 -> NA | I139: =SPVV!H18 -> NA | O139: =SPVV!N18 -> NA
B140: Altitude seção través (m): | C140: =SPVV!B19 -> NA | I140: =SPVV!H19 -> NA | O140: =SPVV!N19 -> NA
B141: Altitude seção aprox/dep (m): | C141: =SPVV!B20 -> NA | I141: =SPVV!H20 -> NA | O141: =SPVV!N20 -> NA
C142: CAB 1 | F142: CAB 2 | I142: CAB 3 | L142: CAB 4 | O142: CAB 5 | R142: CAB 6
B143: Curvas permitidas no circuito de tráfego:

Sheet DADOS GERAIS-A (hidden)
A1: A | B1: Dados Gerais do Aeródromo:
A2: A1 | B2: Denominação do Aeródromo: | C2: Comandante Antônio Amilton Beraldo
A3: A2 | B3: Código OACI: | C3: SSZW
A4: A3 | B4: ARP (Latitude): | C4: 25 | D4: GRAUS
C5: 11 | D5: MIN
C6: 4 | D6: SEC
C7: s
A8: A4 | B8: ARP (Longitude): | C8: 50 | D8: GRAUS
C9: 8 | D9: MIN
C10: 38 | D10: SEC
C11: w
A12: A5 | B12: Elevação (m):

Sheet calculo (hidden)
B1: Comprimento | C1: Rumo Verd | I1: Comprimento | J1: Rumo Verd
B2: =IF((B5^2+C5^2)^0.5=0,0.1,(B5^2+C5^2)^0.5) -> 1280.423186 | C2: =IF(B6>B7,IF(C6>C7,360-(90+D6),90+D6),IF(C6>C7,270+D6,90-D6)) -> 58.90292795 | I2: =IF((I5^2+J5^2)^0.5=0,0.1,(I5^2+J5^2)^0.5) -> 1280.423186 | J2: =IF(I6>I7,IF(J6>J7,360-(90+K6),90+K6),IF(J6>J7,270+K6,90-K6)) -> 238.902928
B4: y (dist. latitude) | C4: x (dist. Long.) | D4: a | E4: Coordenadas | I4: y (dist. latitude) | J4: x (dist. Long.) | K4: a | L4: Coordenadas
B5: =IF(OR(SIGN(E6*3600+F6*60+G6)*SIGN(E7*3600+F7*60+G7)>0,SIGN(E6*3600+F6*60+G6)*SIGN(E7*3600+F7*60+G7)=0),(ABS((B6-B7)*1852/60)*B8),((ABS(B6)+ABS(B7))*1852/60)*B8) -> 661.3252217 | C5: =ABS((C6-C7)*1852/60)*C8 -> 1096.418025 | D5: =IF(B6>B7,(B6-ABS(B6-B7)/2)/3600,(B7-ABS(B6-B7)/2)/3600) -> 25.18407222 | E5: =FORMULÁRIO!$F$23 -> 50 | F5: =FORMULÁRIO!$G$23 -> 8 | G5: =FORMULÁRIO!$H$23 -> 15.87 | I5: =IF(OR(SIGN(L6*3600+M6*60+N6)*SIGN(L7*3600+M7*60+N7)>0,SIGN(L6*3600+M6*60+N6)*SIGN(L7*3600+M7*60+N7)=0),(ABS((I6-I7)*1852/60)*I8),((ABS(I6)+ABS(I7))*1852/60)*I8) -> 661.3252217 | J5: =ABS((J6-J7)*1852/60)*J8 -> 1096.418025 | K5: =IF(I6>I7,(I6-ABS(I6-I7)/2)/3600,(I7-ABS(I6-I7)/2)/3600) -> 25.18407222 | L5: =E8 -> 50 | M5: =F8 -> 8 | N5: 55.02
B6: =E6*60^2+F6*60+G6 -> 90651.91 | C6: =E5*60^2+F5*60+G5 -> 180495.87 | D6: =ACOS(C5/B2)*180/PI() -> 31.09707205 | E6: =FORMULÁRIO!$F$22 -> 25 | F6: =FORMULÁRIO!$G$22 -> 10 | G6: =FORMULÁRIO!$H$22 -> 51.91 | I6: =L6*60^2+M6*60+N6 -> 90673.41 | J6: =L5*60^2+M5*60+N5 -> 180535.02 | K6: =ACOS(J5/I2)*180/PI() -> 31.09707205 | L6: =E7 -> 25 | M6: =F7 -> 11 | N6: 13.41
B7: =E7*60^2+F7*60+G7 -> 90673.41 | C7: =E8*60^2+F8*60+G8 -> 180535.02 | E7: =FORMULÁRIO!$C$22 -> 25 | F7: =FORMULÁRIO!$D$22 -> 11 | G7: =FORMULÁRIO!$E$22 -> 13.41 | I7: =L7*60^2+M7*60+N7 -> 90651.91 | J7: =L8*60^2+M8*60+N8 -> 180495.87 | L7: =E6 -> 25 | M7: =F6 -> 10 | N7: 51.91
B8: =IF(D5<2,COS((5.676*PI())/180),IF(D5<4,COS((5.66*PI())/180),IF(D5<6,COS((5.634*PI())/180),IF(D5<8,COS((5.59*PI())/180),IF(D5<10,COS((5.54*PI())/180),B9))))) -> 0.9965220076 | C8: =IF(D5<2,1.00147,IF(D5<4,1.00012,IF(D5<6,COS(((D5-1.25)*PI())/180),IF(D5<10,COS(((D5-0.8)*PI())/180),IF(D5<19,COS(((D5-0.4)*PI())/180),COS(((D5-0.32)*PI())/180)))))) -> 0.9073078498 | E8: =FORMULÁRIO!$C$23 -> 50 | F8: =FORMULÁRIO!$D$23 -> 8 | G8: =FORMULÁRIO!$E$23 -> 55.02 | I8: =IF(K5<2,COS((5.676*PI())/180),IF(K5<4,COS((5.66*PI())/180),IF(K5<6,COS((5.634*PI())/180),IF(K5<8,COS((5.59*PI())/180),IF(K5<10,COS((5.54*PI())/180),I9))))) -> 0.9965220076 | J8: =IF(K5<2,1.00147,IF(K5<4,1.00012,IF(K5<6,COS(((K5-1.25)*PI())/180),IF(K5<10,COS(((K5-0.8)*PI())/180),IF(K5<19,COS(((K5-0.4)*PI())/180),COS(((K5-0.32)*PI())/180)))))) -> 0.9073078498 | L8: =E5 -> 50 | M8: =F5 -> 8 | N8: 15.87
B9: =IF(D5<13,COS((5.4*PI())/180),IF(D5<16,COS((5.3*PI())/180),IF(D5<19,COS((5.2*PI())/180),IF(D5<22,COS((4.82*PI())/180),B10)))) -> 0.9965220076 | D9: =IF(B6>B7,IF(C6>C7,360-(90+D6),90+D6),IF(C6>C7,360-(90-D6),90-D6)) -> 58.90292795 | I9: =IF(K5<13,COS((5.4*PI())/180),IF(K5<16,COS((5.3*PI())/180),IF(K5<19,COS((5.2*PI())/180),IF(K5<22,COS((4.82*PI())/180),I10)))) -> 0.9965220076 | K9: =IF(I6>I7,IF(J6>J7,360-(90+K6),90+K6),IF(J6>J7,360-(90-K6),90-K6)) -> 238.902928
B10: =IF(D5<26,COS((4.78*PI())/180),IF(D5<28,COS((4.45*PI())/180),IF(D5<30,COS((4.2*PI())/180),COS((3.9*PI())/180)))) -> 0.9965220076 | I10: =IF(K5<26,COS((4.78*PI())/180),IF(K5<28,COS((4.45*PI())/180),IF(K5<30,COS((4.2*PI())/180),COS((3.9*PI())/180)))) -> 0.9965220076
B13: Comprimento | C13: Rumo Verd
B14: =IF((B17^2+C17^2)^0.5=0,0.1,(B17^2+C17^2)^0.5) -> 0.1 | C14: =IF(B18>B19,IF(C18>C19,360-(90+D18),90+D18),IF(C18>C19,270+D18,90-D18)) -> 0
B16: y (dist. latitude) | C16: x (dist. Long.) | D16: a | E16: Coordenadas
B17: =IF(OR(SIGN(E18*3600+F18*60+G18)*SIGN(E19*3600+F19*60+G19)>0,SIGN(E18*3600+F18*60+G18)*SIGN(E19*3600+F19*60+G19)=0),(ABS((B18-B19)*1852/60)*B20),((ABS(B18)+ABS(B19))*1852/60)*B20) -> 0 | C17: =ABS((C18-C19)*1852/60)*C20 -> 0 | D17: =IF(B18>B19,(B18-ABS(B18-B19)/2)/3600,(B19-ABS(B18-B19)/2)/3600) -> 0 | E17: =FORMULÁRIO!$L$23 -> 0 | F17: =FORMULÁRIO!$M$23 -> 0 | G17: =FORMULÁRIO!$N$23 -> 0 | H17: =E17+F17/60+G17/3600 -> 0 | I17: =B14 -> 0.1
B18: =E18*60^2+F18*60+G18 -> 0 | C18: =E17*60^2+F17*60+G17 -> 0 | D18: =ACOS(C17/B14)*180/PI() -> 90 | E18: =FORMULÁRIO!$L$22 -> 0 | F18: =FORMULÁRIO!$M$22 -> 0 | G18: =FORMULÁRIO!$N$22 -> 0 | H18: =E18+F18/60+G18/3600 -> 0 | I18: 6353000
B19: =E19*60^2+F19*60+G19 -> 0 | C19: =E20*60^2+F20*60+G20 -> 0 | E19: =FORMULÁRIO!$I$22 -> 0 | F19: =FORMULÁRIO!$J$22 -> 0 | G19: =FORMULÁRIO!$K$22 -> 0 | H19: =E19+F19/60+G19/3600 -> 0
B20: =IF(D17<2,COS((5.676*PI())/180),IF(D17<4,COS((5.66*PI())/180),IF(D17<6,COS((5.634*PI())/180),IF(D17<8,COS((5.59*PI())/180),IF(D17<10,COS((5.54*PI())/180),B21))))) -> 0.9950970856 | C20: =IF(D17<2,1.00147,IF(D17<4,1.00012,IF(D17<6,COS(((D17-1.25)*PI())/180),IF(D17<10,COS(((D17-0.8)*PI())/180),IF(D17<19,COS(((D17-0.4)*PI())/180),COS(((D17-0.32)*PI())/180)))))) -> 1.00147 | E20: =FORMULÁRIO!$I$23 -> 0 | F20: =FORMULÁRIO!$J$23 -> 0 | G20: =FORMULÁRIO!$K$23 -> 0 | H20: =E20+F20/60+G20/3600 -> 0
B21: =IF(D17<13,COS((5.4*PI())/180),IF(D17<16,COS((5.3*PI())/180),IF(D17<19,COS((5.2*PI())/180),IF(D17<22,COS((4.82*PI())/180),B22)))) -> 0.9955619646 | D21: =IF(B18>B19,IF(C18>C19,360-(90+D18),90+D18),IF(C18>C19,360-(90-D18),90-D18)) -> 0
B22: =IF(D17<26,COS((4.78*PI())/180),IF(D17<28,COS((4.45*PI())/180),IF(D17<30,COS((4.2*PI())/180),COS((3.9*PI())/180)))) -> 0.9965220076
B25: Comprimento | C25: Rumo Verd
B26: =IF((B29^2+C29^2)^0.5=0,0.1,(B29^2+C29^2)^0.5) -> 0.1 | C26: =IF(B30>B31,IF(C30>C31,360-(90+D30),90+D30),IF(C30>C31,270+D30,90-D30)) -> 0
B28: y (dist. latitude) | C28: x (dist. Long.) | D28: a | E28: Coordenadas
B29: =IF(OR(SIGN(E30*3600+F30*60+G30)*SIGN(E31*3600+F31*60+G31)>0,SIGN(E30*3600+F30*60+G30)*SIGN(E31*3600+F31*60+G31)=0),(ABS((B30-B31)*1852/60)*B32),((ABS(B30)+ABS(B31))*1852/60)*B32) -> 0 | C29: =ABS((C30-C31)*1852/60)*C32 -> 0 | D29: =IF(B30>B31,(B30-ABS(B30-B31)/2)/3600,(B31-ABS(B30-B31)/2)/3600) -> 0 | E29: =FORMULÁRIO!$R$23 -> 0 | F29: =FORMULÁRIO!$S$23 -> 0 | G29: =FORMULÁRIO!$T$23 -> 0 | H29: =E29+F29/60+G29/3600 -> 0 | I29: =B26 -> 0.1
B30: =E30*60^2+F30*60+G30 -> 0 | C30: =E29*60^2+F29*60+G29 -> 0 | D30: =ACOS(C29/B26)*180/PI() -> 90 | E30: =FORMULÁRIO!$R$22 -> 0 | F30: =FORMULÁRIO!$S$22 -> 0 | G30: =FORMULÁRIO!$T$22 -> 0 | H30: =E30+F30/60+G30/3600 -> 0 | I30: 6353000
B31: =E31*60^2+F31*60+G31 -> 0 | C31: =E32*60^2+F32*60+G32 -> 0 | E31: =FORMULÁRIO!$O$22 -> 0 | F31: =FORMULÁRIO!$P$22 -> 0 | G31: =FORMULÁRIO!$Q$22 -> 0 | H31: =E31+F31/60+G31/3600 -> 0
B32: =IF(D29<2,COS((5.676*PI())/180),IF(D29<4,COS((5.66*PI())/180),IF(D29<6,COS((5.634*PI())/180),IF(D29<8,COS((5.59*PI())/180),IF(D29<10,COS((5.54*PI())/180),B33))))) -> 0.9950970856 | C32: =IF(D29<2,1.00147,IF(D29<4,1.00012,IF(D29<6,COS(((D29-1.25)*PI())/180),IF(D29<10,COS(((D29-0.8)*PI())/180),IF(D29<19,COS(((D29-0.4)*PI())/180),COS(((D29-0.32)*PI())/180)))))) -> 1.00147 | E32: =FORMULÁRIO!$O$23 -> 0 | F32: =FORMULÁRIO!$P$23 -> 0 | G32: =FORMULÁRIO!$Q$23 -> 0 | H32: =E32+F32/60+G32/3600 -> 0
B33: =IF(D29<13,COS((5.4*PI())/180),IF(D29<16,COS((5.3*PI())/180),IF(D29<19,COS((5.2*PI())/180),IF(D29<22,COS((4.82*PI())/180),B34)))) -> 0.9955619646 | D33: =IF(B30>B31,IF(C30>C31,360-(90+D30),90+D30),IF(C30>C31,360-(90-D30),90-D30)) -> 0
B34: =IF(D29<26,COS((4.78*PI())/180),IF(D29<28,COS((4.45*PI())/180),IF(D29<30,COS((4.2*PI())/180),COS((3.9*PI())/180)))) -> 0.9965220076

Sheet PISTA (hidden)
A1: CODIGO DE REFERÊNCIA | B1: =FORMULÁRIO!C12 -> 3 | C1: =FORMULÁRIO!I12 -> 0 | D1: =FORMULÁRIO!O12 -> 0
A2: TIPO DE OPERAÇÃO (VFR, IFR OU IFR-P) | B2: =IF(B16<10,"VFR",IF(B16<100,"IFR","IFR-P")) -> VFR | C2: =IF(C16<10,"VFR",IF(C16<100,"IFR","IFR-P")) -> IFR-P | D2: =IF(D16<10,"VFR",IF(D16<100,"IFR","IFR-P")) -> IFR-P
A6: COMPRIMENTO DA PISTA | B6: =FORMULÁRIO!C13 -> 1280.423186 | C6: =FORMULÁRIO!I13 -> 0.1 | D6: =FORMULÁRIO!O13 -> 0.1
A7: LARGURA DA PISTA | B7: =FORMULÁRIO!C14 -> 30 | C7: =FORMULÁRIO!I14 -> 0 | D7: =FORMULÁRIO!O14 -> 0
A8: FAIXA DE PISTA LARGURA | B8: =IF(B2="VFR",IF(B1=1,60,IF(B1=2,80,150)),IF(B1<3,150,300)) -> 150 | C8: =IF(C2="VFR",IF(C1=1,60,IF(C1=2,80,150)),IF(C1<3,150,300)) -> 150 | D8: =IF(D2="VFR",IF(D1=1,60,IF(D1=2,80,150)),IF(D1<3,150,300)) -> 150
A9: FAIXA DE PISTA COMPRIMENTO | B9: =IF(AND(B1=1,B2="vfr"),30,60)*2+B6+FORMULÁRIO!C40+FORMULÁRIO!F40 -> 1400.423186 | C9: =IF(AND(C1=1,C2="vfr"),30,60)*2+C6+FORMULÁRIO!I40+FORMULÁRIO!L40 -> 120.1 | D9: =IF(AND(D1=1,D2="vfr"),30,60)*2+D6+FORMULÁRIO!O40+FORMULÁRIO!R40 -> 120.1
B12: =IF(FORMULÁRIO!C27="vfr",1,IF(FORMULÁRIO!C27="ifr npa",10,IF(FORMULÁRIO!C27="não aplicável",0,1000))) -> 1 | C12: =IF(FORMULÁRIO!I27="vfr",1,IF(FORMULÁRIO!I27="ifr npa",10,IF(FORMULÁRIO!I27="não aplicável",0,1000))) -> 1000 | D12: =IF(FORMULÁRIO!O27="vfr",1,IF(FORMULÁRIO!O27="ifr npa",10,IF(FORMULÁRIO!O27="não aplicável",0,1000))) -> 1000
B13: =IF(FORMULÁRIO!C30="vfr",1,IF(FORMULÁRIO!C30="ifr npa",10,IF(FORMULÁRIO!C30="não aplicável",0,1000))) -> 1 | C13: =IF(FORMULÁRIO!I30="vfr",1,IF(FORMULÁRIO!I30="ifr npa",10,IF(FORMULÁRIO!I30="não aplicável",0,1000))) -> 1000 | D13: =IF(FORMULÁRIO!O30="vfr",1,IF(FORMULÁRIO!O30="ifr npa",10,IF(FORMULÁRIO!O30="não aplicável",0,1000))) -> 1000
B14: =IF(FORMULÁRIO!F27="vfr",1,IF(FORMULÁRIO!F27="ifr npa",10,IF(FORMULÁRIO!F27="não aplicável",0,1000))) -> 1 | C14: =IF(FORMULÁRIO!L27="vfr",1,IF(FORMULÁRIO!L27="ifr npa",10,IF(FORMULÁRIO!L27="não aplicável",0,1000))) -> 1000 | D14: =IF(FORMULÁRIO!R27="vfr",1,IF(FORMULÁRIO!R27="ifr npa",10,IF(FORMULÁRIO!R27="não aplicável",0,1000))) -> 1000
B15: =IF(FORMULÁRIO!F30="vfr",1,IF(FORMULÁRIO!F30="ifr npa",10,IF(FORMULÁRIO!F30="não aplicável",0,1000))) -> 1 | C15: =IF(FORMULÁRIO!L30="vfr",1,IF(FORMULÁRIO!L30="ifr npa",10,IF(FORMULÁRIO!L30="não aplicável",0,1000))) -> 1000 | D15: =IF(FORMULÁRIO!R30="vfr",1,IF(FORMULÁRIO!R30="ifr npa",10,IF(FORMULÁRIO!R30="não aplicável",0,1000))) -> 1000
B16: =SUM(B12:B15) -> 4 | C16: =SUM(C12:C15) -> 4000 | D16: =SUM(D12:D15) -> 4000

Sheet DEC (hidden)
A1: CABECEIRA | B1: =FORMULÁRIO!C20 -> 4.008292795 | E1: =FORMULÁRIO!F20 -> 22.0082928 | H1: =FORMULÁRIO!I20 -> -1.882 | K1: =FORMULÁRIO!L20 -> 16.118 | N1: =FORMULÁRIO!O20 -> -1.882 | Q1: =FORMULÁRIO!R20 -> 16.118
A2: ELEVAÇÃO CONSIDERADA | B2: =IF(B3>0,B3,APROX!E2) -> 786.379 | E2: =IF(E3>0,E3,APROX!B2) -> 787.71 | H2: =IF(H3>0,H3,APROX!K2) -> 0 | K2: =IF(K3>0,K3,APROX!H2) -> 0 | N2: =IF(N3>0,N3,APROX!K2) -> 0 | Q2: =IF(Q3>0,Q3,APROX!N2) -> 0
A3: MAIOR ELEVAÇÃO DA CLEARWAY OU FAIXA DE PISTA | B3: =FORMULÁRIO!C45 -> 0 | E3: =FORMULÁRIO!F45 -> 0 | H3: =FORMULÁRIO!I45 -> 0 | K3: =FORMULÁRIO!L45 -> 0 | N3: =FORMULÁRIO!O45 -> 0 | Q3: =FORMULÁRIO!R45 -> 0
A4: CODIGO REFERENCIA DECOLAGEM | B4: =FORMULÁRIO!C29 -> 3 | E4: =FORMULÁRIO!F29 -> 3 | H4: =FORMULÁRIO!I29 -> 0 | K4: =FORMULÁRIO!L29 -> 0 | N4: =FORMULÁRIO!O29 -> 0 | Q4: =FORMULÁRIO!R29 -> 0
A5: TIPO DE OPERAÇÃO (VFR OU IFR) | B5: =FORMULÁRIO!C30 -> VFR | E5: =FORMULÁRIO!F30 -> VFR | H5: =FORMULÁRIO!I30 -> 0 | K5: =FORMULÁRIO!L30 -> 0 | N5: =FORMULÁRIO!O30 -> 0 | Q5: =FORMULÁRIO!R30 -> 0
A6: SID EM CURVA? S ou N | B6: =FORMULÁRIO!C31 -> NÃO | E6: =FORMULÁRIO!F31 -> NÃO | H6: =FORMULÁRIO!I31 -> 0 | K6: =FORMULÁRIO!L31 -> 0 | N6: =FORMULÁRIO!O31 -> 0 | Q6: =FORMULÁRIO!R31 -> 0
A7: Largura da borda interna (m): | B7: =IF(OR(B5="NÃO aplicável",B4="não aplicável"),"NA",IF(B4=1,60,IF(B4=2,80,180))) -> 180 | E7: =IF(OR(E5="NÃO aplicável",E4="não aplicável"),"NA",IF(E4=1,60,IF(E4=2,80,180))) -> 180 | H7: =IF(OR(H5="NÃO aplicável",H4="não aplicável"),"NA",IF(H4=1,60,IF(H4=2,80,180))) -> 180 | K7: =IF(OR(K5="NÃO aplicável",K4="não aplicável"),"NA",IF(K4=1,60,IF(K4=2,80,180))) -> 180 | N7: =IF(OR(N5="NÃO aplicável",N4="não aplicável"),"NA",IF(N4=1,60,IF(N4=2,80,180))) -> 180 | Q7: =IF(OR(Q5="NÃO aplicável",Q4="não aplicável"),"NA",IF(Q4=1,60,IF(Q4=2,80,180))) -> 180
A8: Elevação da borda interna (m): | B8: =IF(OR(B5="NÃO aplicável",B4="não aplicável"),"NA",B2) -> 786.379 | E8: =IF(OR(E5="NÃO aplicável",E4="não aplicável"),"NA",E2) -> 787.71 | H8: =IF(OR(H5="NÃO aplicável",H4="não aplicável"),"NA",H2) -> 0 | K8: =IF(OR(K5="NÃO aplicável",K4="não aplicável"),"NA",K2) -> 0 | N8: =IF(OR(N5="NÃO aplicável",N4="não aplicável"),"NA",N2) -> 0 | Q8: =IF(OR(Q5="NÃO aplicável",Q4="não aplicável"),"NA",Q2) -> 0
A9: Distância do final da pista (m): | B9: =IF(OR(B5="NÃO aplicável",B4="não aplicável"),"NA",IF(FORMULÁRIO!C43>0,FORMULÁRIO!C43,IF(B5="vfr",IF(B4=1,30,60),60))) -> 60 | E9: =IF(OR(E5="NÃO aplicável",E4="não aplicável"),"NA",IF(FORMULÁRIO!F43>0,FORMULÁRIO!F43,IF(E5="vfr",IF(E4=1,30,60),60))) -> 60 | H9: =IF(OR(H5="NÃO aplicável",H4="não aplicável"),"NA",IF(FORMULÁRIO!I43>0,FORMULÁRIO!I43,IF(H5="vfr",IF(H4=1,30,60),60))) -> 60 | K9: =IF(OR(K5="NÃO aplicável",K4="não aplicável"),"NA",IF(FORMULÁRIO!L43>0,FORMULÁRIO!L43,IF(K5="vfr",IF(K4=1,30,60),60))) -> 60 | N9: =IF(OR(N5="NÃO aplicável",N4="não aplicável"),"NA",IF(FORMULÁRIO!O43>0,FORMULÁRIO!O43,IF(N5="vfr",IF(N4=1,30,60),60))) -> 60 | Q9: =IF(OR(Q5="NÃO aplicável",Q4="não aplicável"),"NA",IF(FORMULÁRIO!R43>0,FORMULÁRIO!R43,IF(Q5="vfr",IF(Q4=1,30,60),60))) -> 60
A10: Abertura para cada lado (%): | B10: =IF(OR(B5="NÃO aplicável",B4="não aplicável"),"NA",IF(B4>2,0.125,0.1)) -> 0.125 | E10: =IF(OR(E5="NÃO aplicável",E4="não aplicável"),"NA",IF(E4>2,0.125,0.1)) -> 0.125 | H10: =IF(OR(H5="NÃO aplicável",H4="não aplicável"),"NA",IF(H4>2,0.125,0.1)) -> 0.1 | K10: =IF(OR(K5="NÃO aplicável",K4="não aplicável"),"NA",IF(K4>2,0.125,0.1)) -> 0.1 | N10: =IF(OR(N5="NÃO aplicável",N4="não aplicável"),"NA",IF(N4>2,0.125,0.1)) -> 0.1 | Q10: =IF(OR(Q5="NÃO aplicável",Q4="não aplicável"),"NA",IF(Q4>2,0.125,0.1)) -> 0.1
A11: Largura final (m): | B11: =IF(OR(B5="NÃO aplicável",B4="não aplicável"),"NA",IF(B4=1,380,IF(B4=2,580,IF(B6="Sim",1800,1200)))) -> 1200 | E11: =IF(OR(E5="NÃO aplicável",E4="não aplicável"),"NA",IF(E4=1,380,IF(E4=2,580,IF(E6="Sim",1800,1200)))) -> 1200 | H11: =IF(OR(H5="NÃO aplicável",H4="não aplicável"),"NA",IF(H4=1,380,IF(H4=2,580,IF(H6="Sim",1800,1200)))) -> 1200 | K11: =IF(OR(K5="NÃO aplicável",K4="não aplicável"),"NA",IF(K4=1,380,IF(K4=2,580,IF(K6="Sim",1800,1200)))) -> 1200 | N11: =IF(OR(N5="NÃO aplicável",N4="não aplicável"),"NA",IF(N4=1,380,IF(N4=2,580,IF(N6="Sim",1800,1200)))) -> 1200 | Q11: =IF(OR(Q5="NÃO aplicável",Q4="não aplicável"),"NA",IF(Q4=1,380,IF(Q4=2,580,IF(Q6="Sim",1800,1200)))) -> 1200
A12: Comprimento (m): | B12: =IF(OR(B5="NÃO aplicável",B4="não aplicável"),"NA",IF(B4=1,1600,IF(B4=2,2500,15000))) -> 15000 | E12: =IF(OR(E5="NÃO aplicável",E4="não aplicável"),"NA",IF(E4=1,1600,IF(E4=2,2500,15000))) -> 15000 | H12: =IF(OR(H5="NÃO aplicável",H4="não aplicável"),"NA",IF(H4=1,1600,IF(H4=2,2500,15000))) -> 15000 | K12: =IF(OR(K5="NÃO aplicável",K4="não aplicável"),"NA",IF(K4=1,1600,IF(K4=2,2500,15000))) -> 15000 | N12: =IF(OR(N5="NÃO aplicável",N4="não aplicável"),"NA",IF(N4=1,1600,IF(N4=2,2500,15000))) -> 15000 | Q12: =IF(OR(Q5="NÃO aplicável",Q4="não aplicável"),"NA",IF(Q4=1,1600,IF(Q4=2,2500,15000))) -> 15000
A13: Gradiente (%): | B13: =IF(OR(B5="NÃO aplicável",B4="não aplicável"),"NA",IF(B4>2,0.02,IF(B4=1,0.05,0.04))) -> 0.02 | E13: =IF(OR(E5="NÃO aplicável",E4="não aplicável"),"NA",IF(E4>2,0.02,IF(E4=1,0.05,0.04))) -> 0.02 | H13: =IF(OR(H5="NÃO aplicável",H4="não aplicável"),"NA",IF(H4>2,0.02,IF(H4=1,0.05,0.04))) -> 0.04 | K13: =IF(OR(K5="NÃO aplicável",K4="não aplicável"),"NA",IF(K4>2,0.02,IF(K4=1,0.05,0.04))) -> 0.04 | N13: =IF(OR(N5="NÃO aplicável",N4="não aplicável"),"NA",IF(N4>2,0.02,IF(N4=1,0.05,0.04))) -> 0.04 | Q13: =IF(OR(Q5="NÃO aplicável",Q4="não aplicável"),"NA",IF(Q4>2,0.02,IF(Q4=1,0.05,0.04))) -> 0.04
A14: Elevação da borda externa (m): | B14: =IF(OR(B5="NÃO aplicável",B4="não aplicável"),"NA",B2+B12*B13) -> 1086.379 | E14: =IF(OR(E5="NÃO aplicável",E4="não aplicável"),"NA",E2+E12*E13) -> 1087.71 | H14: =IF(OR(H5="NÃO aplicável",H4="não aplicável"),"NA",H2+H12*H13) -> 600 | K14: =IF(OR(K5="NÃO aplicável",K4="não aplicável"),"NA",K2+K12*K13) -> 600 | N14: =IF(OR(N5="NÃO aplicável",N4="não aplicável"),"NA",N2+N12*N13) -> 600 | Q14: =IF(OR(Q5="NÃO aplicável",Q4="não aplicável"),"NA",Q2+Q12*Q13) -> 600

Sheet APROX (hidden)
A1: CABECEIRA | B1: =FORMULÁRIO!C10 -> 4.008292795 | E1: =FORMULÁRIO!C11 -> 22.0082928 | H1: =FORMULÁRIO!F11 -> 0 | K1: =FORMULÁRIO!I11 -> 16.118 | N1: =FORMULÁRIO!L11 -> 0 | Q1: =FORMULÁRIO!O11 -> 16.118
A2: ELEVAÇÃO DA CABECEIRA | B2: =FORMULÁRIO!C24 -> 787.71 | E2: =FORMULÁRIO!F24 -> 786.379 | H2: =FORMULÁRIO!I24 -> 0 | K2: =FORMULÁRIO!L24 -> 0 | N2: =FORMULÁRIO!O24 -> 0 | Q2: =FORMULÁRIO!R24 -> 0
A3: REFERENCIA | B3: =FORMULÁRIO!AA5-FORMULÁRIO!$C$8 -> 40.08292795 | E3: =FORMULÁRIO!AA4-FORMULÁRIO!C8 -> 220.082928 | H3: =FORMULÁRIO!AB5-FORMULÁRIO!C8 -> -18.82 | K3: =FORMULÁRIO!AB4-FORMULÁRIO!C8 -> 161.18 | N3: =FORMULÁRIO!AC5-FORMULÁRIO!C8 -> -18.82 | Q3: =FORMULÁRIO!AC4-FORMULÁRIO!C8 -> 161.18
A4: ESQUERDA | B4: =MAX(B41:D42) -> 0 | E4: =MAX(E41:G42) -> 0 | H4: 0 | K4: 0 | N4: =MAX(N41:P42) -> 0 | Q4: =MAX(Q41:S42) -> 0
A5: DIREITA | B5: =MAX(B43:D43) -> 0 | E5: =MAX(E43:G43) -> 0 | H5: =MAX(H43:J43) -> 0 | K5: =MAX(K43:M43) -> 0 | N5: =MAX(N43:P43) -> 0 | Q5: =MAX(Q43:S43) -> 0
A6: DIVERGENCIA LADO ESQUERDO % | B6: =C6/100 -> 0 | E6: =F6/100 -> 0 | H6: =I6/100 -> 0 | K6: =L6/100 -> 0 | N6: =O6/100 -> 0 | Q6: =R6/100 -> 0
A7: DIVERGENCIA LADO DIREITO % | B7: =C7/100 -> 0 | E7: =F7/100 -> 0 | H7: =I7/100 -> 0 | K7: =L7/100 -> 0 | N7: =O7/100 -> 0 | Q7: =R7/100 -> 0
A8: ABERTURA ESQUERDA | B8: =B6+(IF(B11="VFR",0.1,0.15)) -> 0.1 | E8: =E6+(IF(E11="VFR",0.1,0.15)) -> 0.1 | H8: 0.15 | K8: 0.15 | N8: =N6+(IF(N11="VFR",0.1,0.15)) -> 0.15 | Q8: =Q6+(IF(Q11="VFR",0.1,0.15)) -> 0.15
A9: ABERTURA DIREITA | B9: =B7+(IF(B11="VFR",0.1,0.15)) -> 0.1 | E9: =E7+(IF(E11="VFR",0.1,0.15)) -> 0.1 | H9: 0.15 | K9: 0.15 | N9: =N7+(IF(N11="VFR",0.1,0.15)) -> 0.15 | Q9: =Q7+(IF(Q11="VFR",0.1,0.15)) -> 0.15
A10: CODIGO REFERENCIA APROXIMAÇÃO | B10: =FORMULÁRIO!C26 -> 3 | E10: =FORMULÁRIO!F26 -> 3 | H10: =FORMULÁRIO!I26 -> 0 | K10: =FORMULÁRIO!L26 -> 0 | N10: =FORMULÁRIO!O26 -> 0 | Q10: =FORMULÁRIO!R26 -> 0
A11: TIPO DE OPERAÇÃO (VFR, IFR OU IFR-P) | B11: =IF(FORMULÁRIO!C27="VFR",FORMULÁRIO!C27,IF(FORMULÁRIO!C27="IFR NPA","IFR",IF(FORMULÁRIO!C27="Não Aplicável",FORMULÁRIO!C27,"IFR-P"))) -> VFR | E11: =IF(FORMULÁRIO!F27="VFR",FORMULÁRIO!F27,IF(FORMULÁRIO!F27="IFR NPA","IFR",IF(FORMULÁRIO!F27="Não Aplicável",FORMULÁRIO!F27,"IFR-P"))) -> VFR | H11: =IF(FORMULÁRIO!I27="VFR",FORMULÁRIO!I27,IF(FORMULÁRIO!I27="IFR NPA","IFR",IF(FORMULÁRIO!I27="Não Aplicável",FORMULÁRIO!I27,"IFR-P"))) -> IFR-P | K11: =IF(FORMULÁRIO!L27="VFR",FORMULÁRIO!L27,IF(FORMULÁRIO!L27="IFR NPA","IFR",IF(FORMULÁRIO!L27="Não Aplicável",FORMULÁRIO!L27,"IFR-P"))) -> IFR-P | N11: =IF(FORMULÁRIO!O27="VFR",FORMULÁRIO!O27,IF(FORMULÁRIO!O27="IFR NPA","IFR",IF(FORMULÁRIO!O27="Não Aplicável",FORMULÁRIO!O27,"IFR-P"))) -> IFR-P | Q11: =IF(FORMULÁRIO!R27="VFR",FORMULÁRIO!R27,IF(FORMULÁRIO!R27="IFR NPA","IFR",IF(FORMULÁRIO!R27="Não Aplicável",FORMULÁRIO!R27,"IFR-P"))) -> IFR-P
A12: Divergência lado direito (%): | B12: =IF(OR(B11="NÃO aplicável",B10="não aplicável"),"NA",B7) -> 0 | E12: =IF(OR(E11="NÃO aplicável",E10="não aplicável"),"NA",E7) -> 0 | H12: =IF(OR(H11="NÃO aplicável",H10="não aplicável"),"NA",H7) -> 0 | K12: =IF(OR(K11="NÃO aplicável",K10="não aplicável"),"NA",K7) -> 0 | N12: =IF(OR(N11="NÃO aplicável",N10="não aplicável"),"NA",N7) -> 0 | Q12: =IF(OR(Q11="NÃO aplicável",Q10="não aplicável"),"NA",Q7) -> 0
A13: Divergência lado esquerdo (%): | B13: =IF(OR(B11="NÃO aplicável",B10="não aplicável"),"NA",B6) -> 0 | E13: =IF(OR(E11="NÃO aplicável",E10="não aplicável"),"NA",E6) -> 0 | H13: =IF(OR(H11="NÃO aplicável",H10="não aplicável"),"NA",H6) -> 0 | K13: =IF(OR(K11="NÃO aplicável",K10="não aplicável"),"NA",K6) -> 0 | N13: =IF(OR(N11="NÃO aplicável",N10="não aplicável"),"NA",N6) -> 0 | Q13: =IF(OR(Q11="NÃO aplicável",Q10="não aplicável"),"NA",Q6) -> 0
A14: Comprimento total (m): | B14: =IF(OR(B11="NÃO aplicável",B10="não aplicável"),"NA",IF(B11="ifr-p",15000,IF(B11="ifr",IF(B10>2,15000,2500),IF(B10>2,3000,IF(B10=1,1600,2500))))) -> 3000 | E14: =IF(OR(E11="NÃO aplicável",E10="não aplicável"),"NA",IF(E11="ifr-p",15000,IF(E11="ifr",IF(E10>2,15000,2500),IF(E10>2,3000,IF(E10=1,1600,2500))))) -> 3000 | H14: =IF(OR(H11="NÃO aplicável",H10="não aplicável"),"NA",IF(H11="ifr-p",15000,IF(H11="ifr",IF(H10>2,15000,2500),IF(H10>2,3000,IF(H10=1,1600,2500))))) -> 15000 | K14: =IF(OR(K11="NÃO aplicável",K10="não aplicável"),"NA",IF(K11="ifr-p",15000,IF(K11="ifr",IF(K10>2,15000,2500),IF(K10>2,3000,IF(K10=1,1600,2500))))) -> 15000 | N14: =IF(OR(N11="NÃO aplicável",N10="não aplicável"),"NA",IF(N11="ifr-p",15000,IF(N11="ifr",IF(N10>2,15000,2500),IF(N10>2,3000,IF(N10=1,1600,2500))))) -> 15000 | Q14: =IF(OR(Q11="NÃO aplicável",Q10="não aplicável"),"NA",IF(Q11="ifr-p",15000,IF(Q11="ifr",IF(Q10>2,15000,2500),IF(Q10>2,3000,IF(Q10=1,1600,2500))))) -> 15000
A15: Primeira Seção
A16: Largura da borda interna (m): | B16: =IF(OR(B11="NÃO aplicável",B10="não aplicável"),"NA",IF(B11="VFR",IF(B10=1,60,IF(B10=2,80,150)),IF(B10<3,150,300))) -> 150 | E16: =IF(OR(E11="NÃO aplicável",E10="não aplicável"),"NA",IF(E11="VFR",IF(E10=1,60,IF(E10=2,80,150)),IF(E10<3,150,300))) -> 150 | H16: =IF(OR(H11="NÃO aplicável",H10="não aplicável"),"NA",IF(H11="VFR",IF(H10=1,60,IF(H10=2,80,150)),IF(H10<3,150,300))) -> 150 | K16: =IF(OR(K11="NÃO aplicável",K10="não aplicável"),"NA",IF(K11="VFR",IF(K10=1,60,IF(K10=2,80,150)),IF(K10<3,150,300))) -> 150 | N16: =IF(OR(N11="NÃO aplicável",N10="não aplicável"),"NA",IF(N11="VFR",IF(N10=1,60,IF(N10=2,80,150)),IF(N10<3,150,300))) -> 150 | Q16: =IF(OR(Q11="NÃO aplicável",Q10="não aplicável"),"NA",IF(Q11="VFR",IF(Q10=1,60,IF(Q10=2,80,150)),IF(Q10<3,150,300))) -> 150
A17: Elevação da borda interna (m): | B17: =IF(OR(B11="NÃO aplicável",B10="não aplicável"),"NA",B2) -> 787.71 | E17: =IF(OR(E11="NÃO aplicável",E10="não aplicável"),"NA",E2) -> 786.379 | H17: =IF(OR(H11="NÃO aplicável",H10="não aplicável"),"NA",H2) -> 0 | K17: =IF(OR(K11="NÃO aplicável",K10="não aplicável"),"NA",K2) -> 0 | N17: =IF(OR(N11="NÃO aplicável",N10="não aplicável"),"NA",N2) -> 0 | Q17: =IF(OR(Q11="NÃO aplicável",Q10="não aplicável"),"NA",Q2) -> 0
A18: Distância da cabeceira (m): | B18: =IF(OR(B11="NÃO aplicável",B10="não aplicável"),"NA",IF(B11="VFR",IF(B10=1,30,60),60)) -> 60 | E18: =IF(OR(E11="NÃO aplicável",E10="não aplicável"),"NA",IF(E11="VFR",IF(E10=1,30,60),60)) -> 60 | H18: =IF(OR(H11="NÃO aplicável",H10="não aplicável"),"NA",IF(H11="VFR",IF(H10=1,30,60),60)) -> 60 | K18: =IF(OR(K11="NÃO aplicável",K10="não aplicável"),"NA",IF(K11="VFR",IF(K10=1,30,60),60)) -> 60 | N18: =IF(OR(N11="NÃO aplicável",N10="não aplicável"),"NA",IF(N11="VFR",IF(N10=1,30,60),60)) -> 60 | Q18: =IF(OR(Q11="NÃO aplicável",Q10="não aplicável"),"NA",IF(Q11="VFR",IF(Q10=1,30,60),60)) -> 60
A19: Abertura total lado direito (%): | B19: =IF(OR(B11="NÃO aplicável",B10="não aplicável"),"NA",B9) -> 0.1 | E19: =IF(OR(E11="NÃO aplicável",E10="não aplicável"),"NA",E9) -> 0.1 | H19: =IF(OR(H11="NÃO aplicável",H10="não aplicável"),"NA",H9) -> 0.15 | K19: =IF(OR(K11="NÃO aplicável",K10="não aplicável"),"NA",K9) -> 0.15 | N19: =IF(OR(N11="NÃO aplicável",N10="não aplicável"),"NA",N9) -> 0.15 | Q19: =IF(OR(Q11="NÃO aplicável",Q10="não aplicável"),"NA",Q9) -> 0.15
A20: Abertura total lado esquerdo (%): | B20: =IF(OR(B11="NÃO aplicável",B10="não aplicável"),"NA",B8) -> 0.1 | E20: =IF(OR(E11="NÃO aplicável",E10="não aplicável"),"NA",E8) -> 0.1 | H20: =IF(OR(H11="NÃO aplicável",H10="não aplicável"),"NA",H8) -> 0.15 | K20: =IF(OR(K11="NÃO aplicável",K10="não aplicável"),"NA",K8) -> 0.15 | N20: =IF(OR(N11="NÃO aplicável",N10="não aplicável"),"NA",N8) -> 0.15 | Q20: =IF(OR(Q11="NÃO aplicável",Q10="não aplicável"),"NA",Q8) -> 0.15
A21: Comprimento (m): | B21: =IF(OR(B11="NÃO aplicável",B10="não aplicável"),"NA",IF(B10<3,IF(AND(B10=1,B11="VFR"),1600,IF(B11="IFR-P",3000,2500)),3000)) -> 3000 | E21: =IF(OR(E11="NÃO aplicável",E10="não aplicável"),"NA",IF(E10<3,IF(AND(E10=1,E11="VFR"),1600,IF(E11="IFR-P",3000,2500)),3000)) -> 3000 | H21: =IF(OR(H11="NÃO aplicável",H10="não aplicável"),"NA",IF(H10<3,IF(AND(H10=1,H11="VFR"),1600,IF(H11="IFR-P",3000,2500)),3000)) -> 3000 | K21: =IF(OR(K11="NÃO aplicável",K10="não aplicável"),"NA",IF(K10<3,IF(AND(K10=1,K11="VFR"),1600,IF(K11="IFR-P",3000,2500)),3000)) -> 3000 | N21: =IF(OR(N11="NÃO aplicável",N10="não aplicável"),"NA",IF(N10<3,IF(AND(N10=1,N11="VFR"),1600,IF(N11="IFR-P",3000,2500)),3000)) -> 3000 | Q21: =IF(OR(Q11="NÃO aplicável",Q10="não aplicável"),"NA",IF(Q10<3,IF(AND(Q10=1,Q11="VFR"),1600,IF(Q11="IFR-P",3000,2500)),3000)) -> 3000
A22: Gradiente (%): | B22: =IF(OR(B11="NÃO aplicável",B10="não aplicável"),"NA",IF(B11="VFR",IF(B10=1,0.05,IF(B10=2,0.04,IF(B10=3,0.0333,0.025))),IF(AND(B11="IFR",B10<3),0.0333,IF(AND(B11="IFR-P",B10<3),0.025,0.02)))) -> 0.0333 | E22: =IF(OR(E11="NÃO aplicável",E10="não aplicável"),"NA",IF(E11="VFR",IF(E10=1,0.05,IF(E10=2,0.04,IF(E10=3,0.0333,0.025))),IF(AND(E11="IFR",E10<3),0.0333,IF(AND(E11="IFR-P",E10<3),0.025,0.02)))) -> 0.0333 | H22: =IF(OR(H11="NÃO aplicável",H10="não aplicável"),"NA",IF(H11="VFR",IF(H10=1,0.05,IF(H10=2,0.04,IF(H10=3,0.0333,0.025))),IF(AND(H11="IFR",H10<3),0.0333,IF(AND(H11="IFR-P",H10<3),0.025,0.02)))) -> 0.025 | K22: =IF(OR(K11="NÃO aplicável",K10="não aplicável"),"NA",IF(K11="VFR",IF(K10=1,0.05,IF(K10=2,0.04,IF(K10=3,0.0333,0.025))),IF(AND(K11="IFR",K10<3),0.0333,IF(AND(K11="IFR-P",K10<3),0.025,0.02)))) -> 0.025 | N22: =IF(OR(N11="NÃO aplicável",N10="não aplicável"),"NA",IF(N11="VFR",IF(N10=1,0.05,IF(N10=2,0.04,IF(N10=3,0.0333,0.025))),IF(AND(N11="IFR",N10<3),0.0333,IF(AND(N11="IFR-P",N10<3),0.025,0.02)))) -> 0.025 | Q22: =IF(OR(Q11="NÃO aplicável",Q10="não aplicável"),"NA",IF(Q11="VFR",IF(Q10=1,0.05,IF(Q10=2,0.04,IF(Q10=3,0.0333,0.025))),IF(AND(Q11="IFR",Q10<3),0.0333,IF(AND(Q11="IFR-P",Q10<3),0.025,0.02)))) -> 0.025
A23: Elevação da borda externa (m): | B23: =IF(OR(B11="NÃO aplicável",B10="não aplicável"),"NA",B21*B22+B2) -> 887.61 | E23: =IF(OR(E11="NÃO aplicável",E10="não aplicável"),"NA",E21*E22+E2) -> 886.279 | H23: =IF(OR(H11="NÃO aplicável",H10="não aplicável"),"NA",H21*H22+H2) -> 75 | K23: =IF(OR(K11="NÃO aplicável",K10="não aplicável"),"NA",K21*K22+K2) -> 75 | N23: =IF(OR(N11="NÃO aplicável",N10="não aplicável"),"NA",N21*N22+N2) -> 75 | Q23: =IF(OR(Q11="NÃO aplicável",Q10="não aplicável"),"NA",Q21*Q22+Q2) -> 75
A24: Segunda Seção | B24: =IF(OR(B11="NÃO aplicável",B10="não aplicável"),"NA",IF(B11="ifr-p",IF(B10<3,12000,3600),IF(B11="vfr",0,IF(B10>2,3600,0)))) -> 0 | E24: =IF(OR(E11="NÃO aplicável",E10="não aplicável"),"NA",IF(E11="ifr-p",IF(E10<3,12000,3600),IF(E11="vfr",0,IF(E10>2,3600,0)))) -> 0 | H24: =IF(OR(H11="NÃO aplicável",H10="não aplicável"),"NA",IF(H11="ifr-p",IF(H10<3,12000,3600),IF(H11="vfr",0,IF(H10>2,3600,0)))) -> 12000 | K24: =IF(OR(K11="NÃO aplicável",K10="não aplicável"),"NA",IF(K11="ifr-p",IF(K10<3,12000,3600),IF(K11="vfr",0,IF(K10>2,3600,0)))) -> 12000 | N24: =IF(OR(N11="NÃO aplicável",N10="não aplicável"),"NA",IF(N11="ifr-p",IF(N10<3,12000,3600),IF(N11="vfr",0,IF(N10>2,3600,0)))) -> 12000 | Q24: =IF(OR(Q11="NÃO aplicável",Q10="não aplicável"),"NA",IF(Q11="ifr-p",IF(Q10<3,12000,3600),IF(Q11="vfr",0,IF(Q10>2,3600,0)))) -> 12000
A25: Largura da borda interna (m): | B25: =IF(OR(B11="NÃO aplicável",B10="não aplicável"),"NA",IF(B24>0,(B16+B21*(B8+B9)),"NA")) -> NA | E25: =IF(OR(E11="NÃO aplicável",E10="não aplicável"),"NA",IF(E24>0,(E16+E21*(E8+E9)),"NA")) -> NA | H25: =IF(OR(H11="NÃO aplicável",H10="não aplicável"),"NA",IF(H24>0,(H16+H21*(H8+H9)),"NA")) -> 1050 | K25: =IF(OR(K11="NÃO aplicável",K10="não aplicável"),"NA",IF(K24>0,(K16+K21*(K8+K9)),"NA")) -> 1050 | N25: =IF(OR(N11="NÃO aplicável",N10="não aplicável"),"NA",IF(N24>0,(N16+N21*(N8+N9)),"NA")) -> 1050 | Q25: =IF(OR(Q11="NÃO aplicável",Q10="não aplicável"),"NA",IF(Q24>0,(Q16+Q21*(Q8+Q9)),"NA")) -> 1050
A26: Elevação da borda interna (m): | B26: =IF(B24=0,"NA",B23) -> NA | E26: =IF(E24=0,"NA",E23) -> NA | H26: 75 | K26: 75 | N26: =IF(N24=0,"NA",N23) -> 75 | Q26: =IF(Q24=0,"NA",Q23) -> 75
A27: Abertura total lado direito (%): | B27: =IF(OR(B11="NÃO aplicável",B10="não aplicável"),"NA",IF(B24=0,"NA",B9)) -> NA | E27: =IF(OR(E11="NÃO aplicável",E10="não aplicável"),"NA",IF(E24=0,"NA",E9)) -> NA | H27: =IF(OR(H11="NÃO aplicável",H10="não aplicável"),"NA",IF(H24=0,"NA",H9)) -> 0.15 | K27: =IF(OR(K11="NÃO aplicável",K10="não aplicável"),"NA",IF(K24=0,"NA",K9)) -> 0.15 | N27: =IF(OR(N11="NÃO aplicável",N10="não aplicável"),"NA",IF(N24=0,"NA",N9)) -> 0.15 | Q27: =IF(OR(Q11="NÃO aplicável",Q10="não aplicável"),"NA",IF(Q24=0,"NA",Q9)) -> 0.15
A28: Abertura total lado esquerdo (%): | B28: =IF(OR(B11="NÃO aplicável",B10="não aplicável"),"NA",IF(B24=0,"NA",B8)) -> NA | E28: =IF(OR(E11="NÃO aplicável",E10="não aplicável"),"NA",IF(E24=0,"NA",E8)) -> NA | H28: =IF(OR(H11="NÃO aplicável",H10="não aplicável"),"NA",IF(H24=0,"NA",H8)) -> 0.15 | K28: =IF(OR(K11="NÃO aplicável",K10="não aplicável"),"NA",IF(K24=0,"NA",K8)) -> 0.15 | N28: =IF(OR(N11="NÃO aplicável",N10="não aplicável"),"NA",IF(N24=0,"NA",N8)) -> 0.15 | Q28: =IF(OR(Q11="NÃO aplicável",Q10="não aplicável"),"NA",IF(Q24=0,"NA",Q8)) -> 0.15
A29: Comprimento (m): | B29: =IF(OR(B11="NÃO aplicável",B10="não aplicável"),"NA",IF(B24>0,IF(MIN(B39:D40)<150,3600,(MIN(B39:D40)-150)/B30+3600),"NA")) -> NA | E29: =IF(OR(E11="NÃO aplicável",E10="não aplicável"),"NA",IF(E24>0,IF(MIN(E39:G40)<150,3600,(MIN(E39:G40)-150)/E30+3600),"NA")) -> NA | H29: =IF(OR(H11="NÃO aplicável",H10="não aplicável"),"NA",IF(H24>0,IF(MIN(H39:J40)<150,3600,(MIN(H39:J40)-150)/H30+3600),"NA")) -> 3600 | K29: =IF(OR(K11="NÃO aplicável",K10="não aplicável"),"NA",IF(K24>0,IF(MIN(K39:M40)<150,3600,(MIN(K39:M40)-150)/K30+3600),"NA")) -> 3600 | N29: =IF(OR(N11="NÃO aplicável",N10="não aplicável"),"NA",IF(N24>0,IF(MIN(N39:P40)<150,3600,(MIN(N39:P40)-150)/N30+3600),"NA")) -> 3600 | Q29: =IF(OR(Q11="NÃO aplicável",Q10="não aplicável"),"NA",IF(Q24>0,IF(MIN(Q39:S40)<150,3600,(MIN(Q39:S40)-150)/Q30+3600),"NA")) -> 3600
A30: Gradiente (%): | B30: =IF(OR(B11="NÃO aplicável",B10="não aplicável"),"NA",IF(B24>0,IF(B10>2,0.025,0.03),"NA")) -> NA | E30: =IF(OR(E11="NÃO aplicável",E10="não aplicável"),"NA",IF(E24>0,IF(E10>2,0.025,0.03),"NA")) -> NA | H30: =IF(OR(H11="NÃO aplicável",H10="não aplicável"),"NA",IF(H24>0,IF(H10>2,0.025,0.03),"NA")) -> 0.03 | K30: =IF(OR(K11="NÃO aplicável",K10="não aplicável"),"NA",IF(K24>0,IF(K10>2,0.025,0.03),"NA")) -> 0.03 | N30: =IF(OR(N11="NÃO aplicável",N10="não aplicável"),"NA",IF(N24>0,IF(N10>2,0.025,0.03),"NA")) -> 0.03 | Q30: =IF(OR(Q11="NÃO aplicável",Q10="não aplicável"),"NA",IF(Q24>0,IF(Q10>2,0.025,0.03),"NA")) -> 0.03
A31: Elevação da borda externa (m): | B31: =IF(OR(B11="NÃO aplicável",B10="não aplicável"),"NA",IF(B24>0,B23+B29*B30,"NA")) -> NA | E31: =IF(OR(E11="NÃO aplicável",E10="não aplicável"),"NA",IF(E24>0,E23+E29*E30,"NA")) -> NA | H31: =IF(OR(H11="NÃO aplicável",H10="não aplicável"),"NA",IF(H24>0,H23+H29*H30,"NA")) -> 183 | K31: =IF(OR(K11="NÃO aplicável",K10="não aplicável"),"NA",IF(K24>0,K23+K29*K30,"NA")) -> 183 | N31: =IF(OR(N11="NÃO aplicável",N10="não aplicável"),"NA",IF(N24>0,N23+N29*N30,"NA")) -> 183 | Q31: =IF(OR(Q11="NÃO aplicável",Q10="não aplicável"),"NA",IF(Q24>0,Q23+Q29*Q30,"NA")) -> 183
A32: Seção Horizontal
A33: Largura da borda interna (m): | B33: =IF(OR(B11="NÃO aplicável",B10="não aplicável"),"NA",IF(B24>0,B16/2+(B21+B29)*B8+B16/2+(B21+B29)*B9,"NA")) -> NA | E33: =IF(OR(E11="NÃO aplicável",E10="não aplicável"),"NA",IF(E24>0,E16/2+(E21+E29)*E8+E16/2+(E21+E29)*E9,"NA")) -> NA | H33: =IF(OR(H11="NÃO aplicável",H10="não aplicável"),"NA",IF(H24>0,H16/2+(H21+H29)*H8+H16/2+(H21+H29)*H9,"NA")) -> 2130 | K33: =IF(OR(K11="NÃO aplicável",K10="não aplicável"),"NA",IF(K24>0,K16/2+(K21+K29)*K8+K16/2+(K21+K29)*K9,"NA")) -> 2130 | N33: =IF(OR(N11="NÃO aplicável",N10="não aplicável"),"NA",IF(N24>0,N16/2+(N21+N29)*N8+N16/2+(N21+N29)*N9,"NA")) -> 2130 | Q33: =IF(OR(Q11="NÃO aplicável",Q10="não aplicável"),"NA",IF(Q24>0,Q16/2+(Q21+Q29)*Q8+Q16/2+(Q21+Q29)*Q9,"NA")) -> 2130
A34: Abertura total lado direito (%): | B34: =IF(OR(B11="NÃO aplicável",B10="não aplicável"),"NA",IF(B24=0,"NA",B9)) -> NA | E34: =IF(OR(E11="NÃO aplicável",E10="não aplicável"),"NA",IF(E24=0,"NA",E9)) -> NA | H34: =IF(OR(H11="NÃO aplicável",H10="não aplicável"),"NA",IF(H24=0,"NA",H9)) -> 0.15 | K34: =IF(OR(K11="NÃO aplicável",K10="não aplicável"),"NA",IF(K24=0,"NA",K9)) -> 0.15 | N34: =IF(OR(N11="NÃO aplicável",N10="não aplicável"),"NA",IF(N24=0,"NA",N9)) -> 0.15 | Q34: =IF(OR(Q11="NÃO aplicável",Q10="não aplicável"),"NA",IF(Q24=0,"NA",Q9)) -> 0.15
A35: Abertura total lado esquerdo (%): | B35: =IF(OR(B11="NÃO aplicável",B10="não aplicável"),"NA",IF(B24=0,"NA",B8)) -> NA | E35: =IF(OR(E11="NÃO aplicável",E10="não aplicável"),"NA",IF(E24=0,"NA",E8)) -> NA | H35: =IF(OR(H11="NÃO aplicável",H10="não aplicável"),"NA",IF(H24=0,"NA",H8)) -> 0.15 | K35: =IF(OR(K11="NÃO aplicável",K10="não aplicável"),"NA",IF(K24=0,"NA",K8)) -> 0.15 | N35: =IF(OR(N11="NÃO aplicável",N10="não aplicável"),"NA",IF(N24=0,"NA",N8)) -> 0.15 | Q35: =IF(OR(Q11="NÃO aplicável",Q10="não aplicável"),"NA",IF(Q24=0,"NA",Q8)) -> 0.15
A36: Comprimento (m): | B36: =IF(OR(B11="NÃO aplicável",B10="não aplicável"),"NA",IF(B24>0,IF(B10>2,15000-B29-B21,"NA"),"NA")) -> NA | E36: =IF(OR(E11="NÃO aplicável",E10="não aplicável"),"NA",IF(E24>0,IF(E10>2,15000-E29-E21,"NA"),"NA")) -> NA | H36: =IF(OR(H11="NÃO aplicável",H10="não aplicável"),"NA",IF(H24>0,IF(H10>2,15000-H29-H21,"NA"),"NA")) -> NA | K36: =IF(OR(K11="NÃO aplicável",K10="não aplicável"),"NA",IF(K24>0,IF(K10>2,15000-K29-K21,"NA"),"NA")) -> NA | N36: =IF(OR(N11="NÃO aplicável",N10="não aplicável"),"NA",IF(N24>0,IF(N10>2,15000-N29-N21,"NA"),"NA")) -> NA | Q36: =IF(OR(Q11="NÃO aplicável",Q10="não aplicável"),"NA",IF(Q24>0,IF(Q10>2,15000-Q29-Q21,"NA"),"NA")) -> NA
A37: Desnível (m): | B37: =B31 -> NA | E37: =E31 -> NA | H37: 183 | K37: 183 | N37: =N31 -> 183 | Q37: =Q31 -> 183
B39: =IF(FORMULÁRIO!C33=0,"na",FORMULÁRIO!C33/3.2808-FORMULÁRIO!C34) -> na | C39: =IF(FORMULÁRIO!D33=0,"na",FORMULÁRIO!D33/3.2808-FORMULÁRIO!D34) -> na | D39: =IF(FORMULÁRIO!E33=0,"na",FORMULÁRIO!E33/3.2808-FORMULÁRIO!E34) -> na | E39: =IF(FORMULÁRIO!F33=0,"na",FORMULÁRIO!F33/3.2808-FORMULÁRIO!F34) -> na | F39: =IF(FORMULÁRIO!G33=0,"na",FORMULÁRIO!G33/3.2808-FORMULÁRIO!G34) -> na | G39: =IF(FORMULÁRIO!H33=0,"na",FORMULÁRIO!H33/3.2808-FORMULÁRIO!H34) -> na | H39: =IF(FORMULÁRIO!I33=0,"na",FORMULÁRIO!I33/3.2808-FORMULÁRIO!I34) -> na | I39: =IF(FORMULÁRIO!J33=0,"na",FORMULÁRIO!J33/3.2808-FORMULÁRIO!J34) -> na | J39: =IF(FORMULÁRIO!K33=0,"na",FORMULÁRIO!K33/3.2808-FORMULÁRIO!K34) -> na | K39: =IF(FORMULÁRIO!L33=0,"na",FORMULÁRIO!L33/3.2808-FORMULÁRIO!L34) -> na | L39: =IF(FORMULÁRIO!M33=0,"na",FORMULÁRIO!M33/3.2808-FORMULÁRIO!M34) -> na | M39: =IF(FORMULÁRIO!N33=0,"na",FORMULÁRIO!N33/3.2808-FORMULÁRIO!N34) -> na | N39: =IF(FORMULÁRIO!O33=0,"na",FORMULÁRIO!O33/3.2808-FORMULÁRIO!O34) -> na | O39: =IF(FORMULÁRIO!P33=0,"na",FORMULÁRIO!P33/3.2808-FORMULÁRIO!P34) -> na | P39: =IF(FORMULÁRIO!Q33=0,"na",FORMULÁRIO!Q33/3.2808-FORMULÁRIO!Q34) -> na | Q39: =IF(FORMULÁRIO!R33=0,"na",FORMULÁRIO!R33/3.2808-FORMULÁRIO!R34) -> na | R39: =IF(FORMULÁRIO!S33=0,"na",FORMULÁRIO!S33/3.2808-FORMULÁRIO!S34) -> na | S39: =IF(FORMULÁRIO!T33=0,"na",FORMULÁRIO!T33/3.2808-FORMULÁRIO!T34) -> na
B40: =IF(FORMULÁRIO!C38=0,"na",FORMULÁRIO!C38/3.2808-FORMULÁRIO!C37) -> na | C40: =IF(FORMULÁRIO!D36=0,"na",FORMULÁRIO!D36/3.2808-FORMULÁRIO!D37) -> na | D40: =IF(FORMULÁRIO!E36=0,"na",FORMULÁRIO!E36/3.2808-FORMULÁRIO!E37) -> na | E40: =IF(FORMULÁRIO!F36=0,"na",FORMULÁRIO!F36/3.2808-FORMULÁRIO!F37) -> na | F40: =IF(FORMULÁRIO!G36=0,"na",FORMULÁRIO!G36/3.2808-FORMULÁRIO!G37) -> na | G40: =IF(FORMULÁRIO!H36=0,"na",FORMULÁRIO!H36/3.2808-FORMULÁRIO!H37) -> na | H40: =IF(FORMULÁRIO!I36=0,"na",FORMULÁRIO!I36/3.2808-FORMULÁRIO!I37) -> na | I40: =IF(FORMULÁRIO!J36=0,"na",FORMULÁRIO!J36/3.2808-FORMULÁRIO!J37) -> na | J40: =IF(FORMULÁRIO!K36=0,"na",FORMULÁRIO!K36/3.2808-FORMULÁRIO!K37) -> na | K40: =IF(FORMULÁRIO!L36=0,"na",FORMULÁRIO!L36/3.2808-FORMULÁRIO!L37) -> na | L40: =IF(FORMULÁRIO!M36=0,"na",FORMULÁRIO!M36/3.2808-FORMULÁRIO!M37) -> na | M40: =IF(FORMULÁRIO!N36=0,"na",FORMULÁRIO!N36/3.2808-FORMULÁRIO!N37) -> na | N40: =IF(FORMULÁRIO!O36=0,"na",FORMULÁRIO!O36/3.2808-FORMULÁRIO!O37) -> na | O40: =IF(FORMULÁRIO!P36=0,"na",FORMULÁRIO!P36/3.2808-FORMULÁRIO!P37) -> na | P40: =IF(FORMULÁRIO!Q36=0,"na",FORMULÁRIO!Q36/3.2808-FORMULÁRIO!Q37) -> na | Q40: =IF(FORMULÁRIO!R36=0,"na",FORMULÁRIO!R36/3.2808-FORMULÁRIO!R37) -> na | R40: =IF(FORMULÁRIO!S36=0,"na",FORMULÁRIO!S36/3.2808-FORMULÁRIO!S37) -> na | S40: =IF(FORMULÁRIO!T36=0,"na",FORMULÁRIO!T36/3.2808-FORMULÁRIO!T37) -> na
A41: esquerda | B41: =IF(FORMULÁRIO!C35=0,"na",IF(FORMULÁRIO!C35>APROX!$B$3,FORMULÁRIO!C35-APROX!$B$3,IF(APROX!$B$3-FORMULÁRIO!C35>90,FORMULÁRIO!C35-APROX!$B$3+360,0))) -> na | C41: =IF(FORMULÁRIO!D35=0,"na",IF(FORMULÁRIO!D35>APROX!$B$3,FORMULÁRIO!D35-APROX!$B$3,IF(APROX!$B$3-FORMULÁRIO!D35>90,FORMULÁRIO!D35-APROX!$B$3+360,0))) -> na | D41: =IF(FORMULÁRIO!E35=0,"na",IF(FORMULÁRIO!E35>APROX!$B$3,FORMULÁRIO!E35-APROX!$B$3,IF(APROX!$B$3-FORMULÁRIO!E35>90,FORMULÁRIO!E35-APROX!$B$3+360,0))) -> na | E41: =IF(FORMULÁRIO!F35=0,"na",IF(FORMULÁRIO!F35>APROX!$E$3,FORMULÁRIO!F35-APROX!$E$3,IF(APROX!$E$3-FORMULÁRIO!F35>90,FORMULÁRIO!F35-APROX!$E$3+360,0))) -> na | F41: =IF(FORMULÁRIO!G35=0,"na",IF(FORMULÁRIO!G35>APROX!$E$3,FORMULÁRIO!G35-APROX!$E$3,IF(APROX!$E$3-FORMULÁRIO!G35>90,FORMULÁRIO!G35-APROX!$E$3+360,0))) -> na | G41: =IF(FORMULÁRIO!H35=0,"na",IF(FORMULÁRIO!H35>APROX!$E$3,FORMULÁRIO!H35-APROX!$E$3,IF(APROX!$E$3-FORMULÁRIO!H35>90,FORMULÁRIO!H35-APROX!$E$3+360,0))) -> na | H41: =IF(FORMULÁRIO!I35=0,"na",IF(FORMULÁRIO!I35>APROX!$H$3,FORMULÁRIO!I35-APROX!$H$3,IF(APROX!$H$3-FORMULÁRIO!I35>90,FORMULÁRIO!I35-APROX!$H$3+360,0))) -> na | I41: =IF(FORMULÁRIO!J35=0,"na",IF(FORMULÁRIO!J35>APROX!$H$3,FORMULÁRIO!J35-APROX!$H$3,IF(APROX!$H$3-FORMULÁRIO!J35>90,FORMULÁRIO!J35-APROX!$H$3+360,0))) -> na | J41: =IF(FORMULÁRIO!K35=0,"na",IF(FORMULÁRIO!K35>APROX!$H$3,FORMULÁRIO!K35-APROX!$H$3,IF(APROX!$H$3-FORMULÁRIO!K35>90,FORMULÁRIO!K35-APROX!$H$3+360,0))) -> na | K41: =IF(FORMULÁRIO!L35=0,"na",IF(FORMULÁRIO!L35>APROX!$K$3,FORMULÁRIO!L35-APROX!$K$3,IF(APROX!$K$3-FORMULÁRIO!L35>90,FORMULÁRIO!L35-APROX!$K$3+360,0))) -> na | L41: =IF(FORMULÁRIO!M35=0,"na",IF(FORMULÁRIO!M35>APROX!$K$3,FORMULÁRIO!M35-APROX!$K$3,IF(APROX!$K$3-FORMULÁRIO!M35>90,FORMULÁRIO!M35-APROX!$K$3+360,0))) -> na | M41: =IF(FORMULÁRIO!N35=0,"na",IF(FORMULÁRIO!N35>APROX!$K$3,FORMULÁRIO!N35-APROX!$K$3,IF(APROX!$K$3-FORMULÁRIO!N35>90,FORMULÁRIO!N35-APROX!$K$3+360,0))) -> na | N41: =IF(FORMULÁRIO!O35=0,"na",IF(FORMULÁRIO!O35>APROX!$N$3,FORMULÁRIO!O35-APROX!$N$3,IF(APROX!$N$3-FORMULÁRIO!O35>90,FORMULÁRIO!O35-APROX!$N$3+360,0))) -> na | O41: =IF(FORMULÁRIO!P35=0,"na",IF(FORMULÁRIO!P35>APROX!$N$3,FORMULÁRIO!P35-APROX!$N$3,IF(APROX!$N$3-FORMULÁRIO!P35>90,FORMULÁRIO!P35-APROX!$N$3+360,0))) -> na | P41: =IF(FORMULÁRIO!Q35=0,"na",IF(FORMULÁRIO!Q35>APROX!$N$3,FORMULÁRIO!Q35-APROX!$N$3,IF(APROX!$N$3-FORMULÁRIO!Q35>90,FORMULÁRIO!Q35-APROX!$N$3+360,0))) -> na | Q41: =IF(FORMULÁRIO!R35=0,"na",IF(FORMULÁRIO!R35>APROX!$Q$3,FORMULÁRIO!R35-APROX!$Q$3,IF(APROX!$Q$3-FORMULÁRIO!R35>90,FORMULÁRIO!R35-APROX!$Q$3+360,0))) -> na | R41: =IF(FORMULÁRIO!S35=0,"na",IF(FORMULÁRIO!S35>APROX!$Q$3,FORMULÁRIO!S35-APROX!$Q$3,IF(APROX!$Q$3-FORMULÁRIO!S35>90,FORMULÁRIO!S35-APROX!$Q$3+360,0))) -> na | S41: =IF(FORMULÁRIO!T35=0,"na",IF(FORMULÁRIO!T35>APROX!$Q$3,FORMULÁRIO!T35-APROX!$Q$3,IF(APROX!$Q$3-FORMULÁRIO!T35>90,FORMULÁRIO!T35-APROX!$Q$3+360,0))) -> na
A42: esquerda | B42: =IF(FORMULÁRIO!C38=0,"na",IF(FORMULÁRIO!C38>APROX!$B$3,FORMULÁRIO!C38-APROX!$B$3,IF(APROX!$B$3-FORMULÁRIO!C38>90,FORMULÁRIO!C38-APROX!$B$3+360,0))) -> na | C42: =IF(FORMULÁRIO!D38=0,"na",IF(FORMULÁRIO!D38>APROX!$B$3,FORMULÁRIO!D38-APROX!$B$3,IF(APROX!$B$3-FORMULÁRIO!D38>90,FORMULÁRIO!D38-APROX!$B$3+360,0))) -> na | D42: =IF(FORMULÁRIO!E38=0,"na",IF(FORMULÁRIO!E38>APROX!$B$3,FORMULÁRIO!E38-APROX!$B$3,IF(APROX!$B$3-FORMULÁRIO!E38>90,FORMULÁRIO!E38-APROX!$B$3+360,0))) -> na | E42: =IF(FORMULÁRIO!F38=0,"na",IF(FORMULÁRIO!F38>APROX!$E$3,FORMULÁRIO!F38-APROX!$E$3,IF(APROX!$E$3-FORMULÁRIO!F38>90,FORMULÁRIO!F38-APROX!$E$3+360,0))) -> na | F42: =IF(FORMULÁRIO!G38=0,"na",IF(FORMULÁRIO!G38>APROX!$E$3,FORMULÁRIO!G38-APROX!$E$3,IF(APROX!$E$3-FORMULÁRIO!G38>90,FORMULÁRIO!G38-APROX!$E$3+360,0))) -> na | G42: =IF(FORMULÁRIO!H38=0,"na",IF(FORMULÁRIO!H38>APROX!$E$3,FORMULÁRIO!H38-APROX!$E$3,IF(APROX!$E$3-FORMULÁRIO!H38>90,FORMULÁRIO!H38-APROX!$E$3+360,0))) -> na | H42: =IF(FORMULÁRIO!I38=0,"na",IF(FORMULÁRIO!I38>APROX!$H$3,FORMULÁRIO!I38-APROX!$H$3,IF(APROX!$H$3-FORMULÁRIO!I38>90,FORMULÁRIO!I38-APROX!$H$3+360,0))) -> na | I42: =IF(FORMULÁRIO!J38=0,"na",IF(FORMULÁRIO!J38>APROX!$H$3,FORMULÁRIO!J38-APROX!$H$3,IF(APROX!$H$3-FORMULÁRIO!J38>90,FORMULÁRIO!J38-APROX!$H$3+360,0))) -> na | J42: =IF(FORMULÁRIO!K38=0,"na",IF(FORMULÁRIO!K38>APROX!$H$3,FORMULÁRIO!K38-APROX!$H$3,IF(APROX!$H$3-FORMULÁRIO!K38>90,FORMULÁRIO!K38-APROX!$H$3+360,0))) -> na | K42: =IF(FORMULÁRIO!L38=0,"na",IF(FORMULÁRIO!L38>APROX!$K$3,FORMULÁRIO!L38-APROX!$K$3,IF(APROX!$K$3-FORMULÁRIO!L38>90,FORMULÁRIO!L38-APROX!$K$3+360,0))) -> na | L42: =IF(FORMULÁRIO!M38=0,"na",IF(FORMULÁRIO!M38>APROX!$K$3,FORMULÁRIO!M38-APROX!$K$3,IF(APROX!$K$3-FORMULÁRIO!M38>90,FORMULÁRIO!M38-APROX!$K$3+360,0))) -> na | M42: =IF(FORMULÁRIO!N38=0,"na",IF(FORMULÁRIO!N38>APROX!$K$3,FORMULÁRIO!N38-APROX!$K$3,IF(APROX!$K$3-FORMULÁRIO!N38>90,FORMULÁRIO!N38-APROX!$K$3+360,0))) -> na | N42: =IF(FORMULÁRIO!O38=0,"na",IF(FORMULÁRIO!O38>APROX!$N$3,FORMULÁRIO!O38-APROX!$N$3,IF(APROX!$N$3-FORMULÁRIO!O38>90,FORMULÁRIO!O38-APROX!$N$3+360,0))) -> na | O42: =IF(FORMULÁRIO!P38=0,"na",IF(FORMULÁRIO!P38>APROX!$N$3,FORMULÁRIO!P38-APROX!$N$3,IF(APROX!$N$3-FORMULÁRIO!P38>90,FORMULÁRIO!P38-APROX!$N$3+360,0))) -> na | P42: =IF(FORMULÁRIO!Q38=0,"na",IF(FORMULÁRIO!Q38>APROX!$N$3,FORMULÁRIO!Q38-APROX!$N$3,IF(APROX!$N$3-FORMULÁRIO!Q38>90,FORMULÁRIO!Q38-APROX!$N$3+360,0))) -> na | Q42: =IF(FORMULÁRIO!R38=0,"na",IF(FORMULÁRIO!R38>APROX!$Q$3,FORMULÁRIO!R38-APROX!$Q$3,IF(APROX!$Q$3-FORMULÁRIO!R38>90,FORMULÁRIO!R38-APROX!$Q$3+360,0))) -> na | R42: =IF(FORMULÁRIO!S38=0,"na",IF(FORMULÁRIO!S38>APROX!$Q$3,FORMULÁRIO!S38-APROX!$Q$3,IF(APROX!$Q$3-FORMULÁRIO!S38>90,FORMULÁRIO!S38-APROX!$Q$3+360,0))) -> na | S42: =IF(FORMULÁRIO!T38=0,"na",IF(FORMULÁRIO!T38>APROX!$Q$3,FORMULÁRIO!T38-APROX!$Q$3,IF(APROX!$Q$3-FORMULÁRIO!T38>90,FORMULÁRIO!T38-APROX!$Q$3+360,0))) -> na
A43: direita | B43: =IF(FORMULÁRIO!C35=0,"na",IF(FORMULÁRIO!C35<APROX!$B$3,IF(APROX!$B$3-FORMULÁRIO!C35>90,FORMULÁRIO!C35+360-APROX!$B$3,APROX!$B$3-FORMULÁRIO!C35),0)) -> na | C43: =IF(FORMULÁRIO!D35=0,"na",IF(FORMULÁRIO!D35<APROX!$B$3,IF(APROX!$B$3-FORMULÁRIO!D35>90,FORMULÁRIO!D35+360-APROX!$B$3,APROX!$B$3-FORMULÁRIO!D35),0)) -> na | D43: =IF(FORMULÁRIO!E35=0,"na",IF(FORMULÁRIO!E35<APROX!$B$3,IF(APROX!$B$3-FORMULÁRIO!E35>90,FORMULÁRIO!E35+360-APROX!$B$3,APROX!$B$3-FORMULÁRIO!E35),0)) -> na | E43: =IF(FORMULÁRIO!F35=0,"na",IF(FORMULÁRIO!F35<APROX!$E$3,IF(APROX!$E$3-FORMULÁRIO!F35>90,FORMULÁRIO!F35+360-APROX!$E$3,APROX!$E$3-FORMULÁRIO!F35),0)) -> na | F43: =IF(FORMULÁRIO!G35=0,"na",IF(FORMULÁRIO!G35<APROX!$E$3,IF(APROX!$E$3-FORMULÁRIO!G35>90,FORMULÁRIO!G35+360-APROX!$E$3,APROX!$E$3-FORMULÁRIO!G35),0)) -> na | G43: =IF(FORMULÁRIO!H35=0,"na",IF(FORMULÁRIO!H35<APROX!$E$3,IF(APROX!$E$3-FORMULÁRIO!H35>90,FORMULÁRIO!H35+360-APROX!$E$3,APROX!$E$3-FORMULÁRIO!H35),0)) -> na | H43: =IF(FORMULÁRIO!I35=0,"na",IF(FORMULÁRIO!I35<APROX!$H$3,IF(APROX!$H$3-FORMULÁRIO!I35>90,FORMULÁRIO!I35+360-APROX!$H$3,APROX!$H$3-FORMULÁRIO!I35),0)) -> na | I43: =IF(FORMULÁRIO!J35=0,"na",IF(FORMULÁRIO!J35<APROX!$H$3,IF(APROX!$H$3-FORMULÁRIO!J35>90,FORMULÁRIO!J35+360-APROX!$H$3,APROX!$H$3-FORMULÁRIO!J35),0)) -> na | J43: =IF(FORMULÁRIO!K35=0,"na",IF(FORMULÁRIO!K35<APROX!$H$3,IF(APROX!$H$3-FORMULÁRIO!K35>90,FORMULÁRIO!K35+360-APROX!$H$3,APROX!$H$3-FORMULÁRIO!K35),0)) -> na | K43: =IF(FORMULÁRIO!L35=0,"na",IF(FORMULÁRIO!L35<APROX!$K$3,IF(APROX!$K$3-FORMULÁRIO!L35>90,FORMULÁRIO!L35+360-APROX!$K$3,APROX!$K$3-FORMULÁRIO!L35),0)) -> na | L43: =IF(FORMULÁRIO!M35=0,"na",IF(FORMULÁRIO!M35<APROX!$K$3,IF(APROX!$K$3-FORMULÁRIO!M35>90,FORMULÁRIO!M35+360-APROX!$K$3,APROX!$K$3-FORMULÁRIO!M35),0)) -> na | M43: =IF(FORMULÁRIO!N35=0,"na",IF(FORMULÁRIO!N35<APROX!$K$3,IF(APROX!$K$3-FORMULÁRIO!N35>90,FORMULÁRIO!N35+360-APROX!$K$3,APROX!$K$3-FORMULÁRIO!N35),0)) -> na | N43: =IF(FORMULÁRIO!O35=0,"na",IF(FORMULÁRIO!O35<APROX!$N$3,IF(APROX!$N$3-FORMULÁRIO!O35>90,FORMULÁRIO!O35+360-APROX!$N$3,APROX!$N$3-FORMULÁRIO!O35),0)) -> na | O43: =IF(FORMULÁRIO!P35=0,"na",IF(FORMULÁRIO!P35<APROX!$N$3,IF(APROX!$N$3-FORMULÁRIO!P35>90,FORMULÁRIO!P35+360-APROX!$N$3,APROX!$N$3-FORMULÁRIO!P35),0)) -> na | P43: =IF(FORMULÁRIO!Q35=0,"na",IF(FORMULÁRIO!Q35<APROX!$N$3,IF(APROX!$N$3-FORMULÁRIO!Q35>90,FORMULÁRIO!Q35+360-APROX!$N$3,APROX!$N$3-FORMULÁRIO!Q35),0)) -> na | Q43: =IF(FORMULÁRIO!R35=0,"na",IF(FORMULÁRIO!R35<APROX!$Q$3,IF(APROX!$Q$3-FORMULÁRIO!R35>90,FORMULÁRIO!R35+360-APROX!$Q$3,APROX!$Q$3-FORMULÁRIO!R35),0)) -> na | R43: =IF(FORMULÁRIO!S35=0,"na",IF(FORMULÁRIO!S35<APROX!$Q$3,IF(APROX!$Q$3-FORMULÁRIO!S35>90,FORMULÁRIO!S35+360-APROX!$Q$3,APROX!$Q$3-FORMULÁRIO!S35),0)) -> na | S43: =IF(FORMULÁRIO!T35=0,"na",IF(FORMULÁRIO!T35<APROX!$Q$3,IF(APROX!$Q$3-FORMULÁRIO!T35>90,FORMULÁRIO!T35+360-APROX!$Q$3,APROX!$Q$3-FORMULÁRIO!T35),0)) -> na
A44: direita | B44: =IF(FORMULÁRIO!C38=0,"na",IF(FORMULÁRIO!C38<APROX!$B$3,IF(APROX!$B$3-FORMULÁRIO!C38>90,FORMULÁRIO!C38+360-APROX!$B$3,APROX!$B$3-FORMULÁRIO!C38),0)) -> na | C44: =IF(FORMULÁRIO!D38=0,"na",IF(FORMULÁRIO!D38<APROX!$B$3,IF(APROX!$B$3-FORMULÁRIO!D38>90,FORMULÁRIO!D38+360-APROX!$B$3,APROX!$B$3-FORMULÁRIO!D38),0)) -> na | D44: =IF(FORMULÁRIO!E38=0,"na",IF(FORMULÁRIO!E38<APROX!$B$3,IF(APROX!$B$3-FORMULÁRIO!E38>90,FORMULÁRIO!E38+360-APROX!$B$3,APROX!$B$3-FORMULÁRIO!E38),0)) -> na | E44: =IF(FORMULÁRIO!F38=0,"na",IF(FORMULÁRIO!F38<APROX!$E$3,IF(APROX!$E$3-FORMULÁRIO!F38>90,FORMULÁRIO!F38+360-APROX!$E$3,APROX!$E$3-FORMULÁRIO!F38),0)) -> na | F44: =IF(FORMULÁRIO!G38=0,"na",IF(FORMULÁRIO!G38<APROX!$E$3,IF(APROX!$E$3-FORMULÁRIO!G38>90,FORMULÁRIO!G38+360-APROX!$E$3,APROX!$E$3-FORMULÁRIO!G38),0)) -> na | G44: =IF(FORMULÁRIO!H38=0,"na",IF(FORMULÁRIO!H38<APROX!$E$3,IF(APROX!$E$3-FORMULÁRIO!H38>90,FORMULÁRIO!H38+360-APROX!$E$3,APROX!$E$3-FORMULÁRIO!H38),0)) -> na | H44: =IF(FORMULÁRIO!I38=0,"na",IF(FORMULÁRIO!I38<APROX!$H$3,IF(APROX!$H$3-FORMULÁRIO!I38>90,FORMULÁRIO!I38+360-APROX!$H$3,APROX!$H$3-FORMULÁRIO!I38),0)) -> na | I44: =IF(FORMULÁRIO!J38=0,"na",IF(FORMULÁRIO!J38<APROX!$H$3,IF(APROX!$H$3-FORMULÁRIO!J38>90,FORMULÁRIO!J38+360-APROX!$H$3,APROX!$H$3-FORMULÁRIO!J38),0)) -> na | J44: =IF(FORMULÁRIO!K38=0,"na",IF(FORMULÁRIO!K38<APROX!$H$3,IF(APROX!$H$3-FORMULÁRIO!K38>90,FORMULÁRIO!K38+360-APROX!$H$3,APROX!$H$3-FORMULÁRIO!K38),0)) -> na | K44: =IF(FORMULÁRIO!L38=0,"na",IF(FORMULÁRIO!L38<APROX!$K$3,IF(APROX!$K$3-FORMULÁRIO!L38>90,FORMULÁRIO!L38+360-APROX!$K$3,APROX!$K$3-FORMULÁRIO!L38),0)) -> na | L44: =IF(FORMULÁRIO!M38=0,"na",IF(FORMULÁRIO!M38<APROX!$K$3,IF(APROX!$K$3-FORMULÁRIO!M38>90,FORMULÁRIO!M38+360-APROX!$K$3,APROX!$K$3-FORMULÁRIO!M38),0)) -> na | M44: =IF(FORMULÁRIO!N38=0,"na",IF(FORMULÁRIO!N38<APROX!$K$3,IF(APROX!$K$3-FORMULÁRIO!N38>90,FORMULÁRIO!N38+360-APROX!$K$3,APROX!$K$3-FORMULÁRIO!N38),0)) -> na | N44: =IF(FORMULÁRIO!O38=0,"na",IF(FORMULÁRIO!O38<APROX!$N$3,IF(APROX!$N$3-FORMULÁRIO!O38>90,FORMULÁRIO!O38+360-APROX!$N$3,APROX!$N$3-FORMULÁRIO!O38),0)) -> na | O44: =IF(FORMULÁRIO!P38=0,"na",IF(FORMULÁRIO!P38<APROX!$N$3,IF(APROX!$N$3-FORMULÁRIO!P38>90,FORMULÁRIO!P38+360-APROX!$N$3,APROX!$N$3-FORMULÁRIO!P38),0)) -> na | P44: =IF(FORMULÁRIO!Q38=0,"na",IF(FORMULÁRIO!Q38<APROX!$N$3,IF(APROX!$N$3-FORMULÁRIO!Q38>90,FORMULÁRIO!Q38+360-APROX!$N$3,APROX!$N$3-FORMULÁRIO!Q38),0)) -> na | Q44: =IF(FORMULÁRIO!R38=0,"na",IF(FORMULÁRIO!R38<APROX!$Q$3,IF(APROX!$Q$3-FORMULÁRIO!R38>90,FORMULÁRIO!R38+360-APROX!$Q$3,APROX!$Q$3-FORMULÁRIO!R38),0)) -> na | R44: =IF(FORMULÁRIO!S38=0,"na",IF(FORMULÁRIO!S38<APROX!$Q$3,IF(APROX!$Q$3-FORMULÁRIO!S38>90,FORMULÁRIO!S38+360-APROX!$Q$3,APROX!$Q$3-FORMULÁRIO!S38),0)) -> na | S44: =IF(FORMULÁRIO!T38=0,"na",IF(FORMULÁRIO!T38<APROX!$Q$3,IF(APROX!$Q$3-FORMULÁRIO!T38>90,FORMULÁRIO!T38+360-APROX!$Q$3,APROX!$Q$3-FORMULÁRIO!T38),0)) -> na

Sheet APROX INTERNA (hidden)
A1: LETRA DO CODIGO REF DO AD É F? (S ou N) | B1: =FORMULÁRIO!$F$12 -> C | E1: =FORMULÁRIO!$F$12 -> C | H1: =FORMULÁRIO!$L$12 -> 0 | K1: =FORMULÁRIO!$L$12 -> 0 | N1: =FORMULÁRIO!$L$12 -> 0 | Q1: =FORMULÁRIO!$L$12 -> 0
A2: CABECEIRA | B2: =APROX!B1 -> 4.008292795 | E2: =APROX!E1 -> 22.0082928 | H2: =APROX!H1 -> 0 | K2: =APROX!K1 -> 16.118 | N2: =APROX!N1 -> 0 | Q2: =APROX!Q1 -> 16.118
A3: ELEVAÇÃO DA CABECEIRA | B3: =APROX!B2 -> 787.71 | E3: =APROX!E2 -> 786.379 | H3: =APROX!H2 -> 0 | K3: =APROX!K2 -> 0 | N3: =APROX!N2 -> 0 | Q3: =APROX!Q2 -> 0
A4: CODIGO REFERENCIA APROXIMAÇÃO | B4: =APROX!B10 -> 3 | E4: =APROX!E10 -> 3 | H4: =APROX!H10 -> 0 | K4: =APROX!K10 -> 0 | N4: =APROX!N10 -> 0 | Q4: =APROX!Q10 -> 0
A5: TIPO DE OPERAÇÃO (VFR, IFR OU IFR-P) | B5: =APROX!B11 -> VFR | E5: =APROX!E11 -> VFR | H5: =APROX!H11 -> IFR-P | K5: =APROX!K11 -> IFR-P | N5: =APROX!N11 -> IFR-P | Q5: =APROX!Q11 -> IFR-P
A6: Largura da borda interna (m): | B6: =IF(B5="IFR-P",IF(B4<3,90,IF(B1="F",155,120)),"NA") -> NA | E6: =IF(E5="IFR-P",IF(E4<3,90,IF(E1="F",155,120)),"NA") -> NA | H6: 90 | K6: 90 | N6: =IF(N5="IFR-P",IF(N4<3,90,IF(N1="F",155,120)),"NA") -> 90 | Q6: =IF(Q5="IFR-P",IF(Q4<3,90,IF(Q1="F",155,120)),"NA") -> 90
A7: Elevação da borda interna (m): | B7: =IF(B5="IFR-P",B3,"NA") -> NA | E7: =IF(E5="IFR-P",E3,"NA") -> NA | H7: 0 | K7: 0 | N7: =IF(N5="IFR-P",N3,"NA") -> 0 | Q7: =IF(Q5="IFR-P",Q3,"NA") -> 0
A8: Distância da cabeceira (m): | B8: =IF(B5="IFR-P",60,"NA") -> NA | E8: =IF(E5="IFR-P",60,"NA") -> NA | H8: 60 | K8: 60 | N8: =IF(N5="IFR-P",60,"NA") -> 60 | Q8: =IF(Q5="IFR-P",60,"NA") -> 60
A9: Abertura para cada lado (%): | B9: =IF(B5="IFR-P","PARALELA","NA") -> NA | E9: =IF(E5="IFR-P","PARALELA","NA") -> NA | H9: PARALELA | K9: PARALELA | N9: =IF(N5="IFR-P","PARALELA","NA") -> PARALELA | Q9: =IF(Q5="IFR-P","PARALELA","NA") -> PARALELA
A10: Comprimento (m): | B10: =IF(B5="IFR-P",900,"NA") -> NA | E10: =IF(E5="IFR-P",900,"NA") -> NA | H10: 900 | K10: 900 | N10: =IF(N5="IFR-P",900,"NA") -> 900 | Q10: =IF(Q5="IFR-P",900,"NA") -> 900
A11: Gradiente (%): | B11: =IF(B5="IFR-P",IF(B4<3,0.025,0.02),"NA") -> NA | E11: =IF(E5="IFR-P",IF(E4<3,0.025,0.02),"NA") -> NA | H11: 0.025 | K11: 0.025 | N11: =IF(N5="IFR-P",IF(N4<3,0.025,0.02),"NA") -> 0.025 | Q11: =IF(Q5="IFR-P",IF(Q4<3,0.025,0.02),"NA") -> 0.025
A12: Elevação da borda externa (m): | B12: =IF(B5="IFR-P",B3+B10*B11,"NA") -> NA | E12: =IF(E5="IFR-P",E3+E10*E11,"NA") -> NA | H12: 22.5 | K12: 22.5 | N12: =IF(N5="IFR-P",N3+N10*N11,"NA") -> 22.5 | Q12: =IF(Q5="IFR-P",Q3+Q10*Q11,"NA") -> 22.5

Sheet TRANSIÇÃO INTERNA (hidden)
A1: LETRA DO CODIGO REF DO AD É F? (S ou N) | B1: ='APROX INTERNA'!B1 -> C | E1: ='APROX INTERNA'!E1 -> C | H1: ='APROX INTERNA'!H1 -> 0 | K1: ='APROX INTERNA'!K1 -> 0 | N1: ='APROX INTERNA'!N1 -> 0 | Q1: ='APROX INTERNA'!Q1 -> 0
A2: CABECEIRA | B2: ='APROX INTERNA'!B2 -> 4.008292795 | E2: ='APROX INTERNA'!E2 -> 22.0082928 | H2: ='APROX INTERNA'!H2 -> 0 | K2: ='APROX INTERNA'!K2 -> 16.118 | N2: ='APROX INTERNA'!N2 -> 0 | Q2: ='APROX INTERNA'!Q2 -> 16.118
A3: ELEVAÇÃO DA CABECEIRA | B3: ='APROX INTERNA'!B3 -> 787.71 | E3: ='APROX INTERNA'!E3 -> 786.379 | H3: ='APROX INTERNA'!H3 -> 0 | K3: ='APROX INTERNA'!K3 -> 0 | N3: ='APROX INTERNA'!N3 -> 0 | Q3: ='APROX INTERNA'!Q3 -> 0
A4: CODIGO REFERENCIA APROXIMAÇÃO | B4: ='APROX INTERNA'!B4 -> 3 | E4: ='APROX INTERNA'!E4 -> 3 | H4: ='APROX INTERNA'!H4 -> 0 | K4: ='APROX INTERNA'!K4 -> 0 | N4: ='APROX INTERNA'!N4 -> 0 | Q4: ='APROX INTERNA'!Q4 -> 0
A5: TIPO DE OPERAÇÃO (VFR, IFR OU IFR-P) | B5: ='APROX INTERNA'!B5 -> VFR | E5: ='APROX INTERNA'!E5 -> VFR | H5: ='APROX INTERNA'!H5 -> IFR-P | K5: ='APROX INTERNA'!K5 -> IFR-P | N5: ='APROX INTERNA'!N5 -> IFR-P | Q5: ='APROX INTERNA'!Q5 -> IFR-P
A6: Gradiente (%): | B6: =IF(B5="IFR-P",IF(B4<3,0.4,0.333),"NA") -> NA | E6: =IF(E5="IFR-P",IF(E4<3,0.4,0.333),"NA") -> NA | H6: =IF(H5="IFR-P",IF(H4<3,0.4,0.333),"NA") -> 0.4 | K6: =IF(K5="IFR-P",IF(K4<3,0.4,0.333),"NA") -> 0.4 | N6: =IF(N5="IFR-P",IF(N4<3,0.4,0.333),"NA") -> 0.4 | Q6: =IF(Q5="IFR-P",IF(Q4<3,0.4,0.333),"NA") -> 0.4
A7: Elevação da borda superior (m): | B7: =IF(B5="IFR-P",45+FORMULÁRIO!$C$7,"NA") -> NA | E7: =IF(E5="IFR-P",45+FORMULÁRIO!$C$7,"NA") -> NA | H7: =IF(H5="IFR-P",45+FORMULÁRIO!$C$7,"NA") -> 832.71 | K7: =IF(K5="IFR-P",45+FORMULÁRIO!$C$7,"NA") -> 832.71 | N7: =IF(N5="IFR-P",45+FORMULÁRIO!$C$7,"NA") -> 832.71 | Q7: =IF(Q5="IFR-P",45+FORMULÁRIO!$C$7,"NA") -> 832.71

Sheet POUSO INTERROMPIDO (hidden)
A1: LETRA DO CODIGO REF | B1: ='APROX INTERNA'!B1 -> C | E1: ='APROX INTERNA'!E1 -> C | H1: ='APROX INTERNA'!H1 -> 0 | K1: ='APROX INTERNA'!K1 -> 0 | N1: ='APROX INTERNA'!N1 -> 0 | Q1: ='APROX INTERNA'!Q1 -> 0
A2: CABECEIRA | B2: ='APROX INTERNA'!B2 -> 4.008292795 | E2: ='APROX INTERNA'!E2 -> 22.0082928 | H2: ='APROX INTERNA'!H2 -> 0 | K2: ='APROX INTERNA'!K2 -> 16.118 | N2: ='APROX INTERNA'!N2 -> 0 | Q2: ='APROX INTERNA'!Q2 -> 16.118
A3: ELEVAÇÃO DA CABECEIRA | B3: ='APROX INTERNA'!B3 -> 787.71 | E3: ='APROX INTERNA'!E3 -> 786.379 | H3: ='APROX INTERNA'!H3 -> 0 | K3: ='APROX INTERNA'!K3 -> 0 | N3: ='APROX INTERNA'!N3 -> 0 | Q3: ='APROX INTERNA'!Q3 -> 0
A4: CODIGO REFERENCIA APROXIMAÇÃO | B4: =FORMULÁRIO!C26 -> 3 | E4: =FORMULÁRIO!F26 -> 3 | H4: =FORMULÁRIO!I26 -> 0 | K4: =FORMULÁRIO!L26 -> 0 | N4: =FORMULÁRIO!O26 -> 0 | Q4: =FORMULÁRIO!R26 -> 0
A5: TIPO DE OPERAÇÃO (VFR, IFR OU IFR-P) | B5: ='APROX INTERNA'!B5 -> VFR | E5: ='APROX INTERNA'!E5 -> VFR | H5: ='APROX INTERNA'!H5 -> IFR-P | K5: ='APROX INTERNA'!K5 -> IFR-P | N5: ='APROX INTERNA'!N5 -> IFR-P | Q5: ='APROX INTERNA'!Q5 -> IFR-P
A6: Elevação da borda interna (m): | B6: =FORMULÁRIO!E28 -> 0 | E6: =FORMULÁRIO!H28 -> 0 | H6: =FORMULÁRIO!K28 -> 0 | K6: =FORMULÁRIO!N28 -> 0 | N6: =FORMULÁRIO!Q28 -> 0 | Q6: =FORMULÁRIO!T28 -> 0
A7: Largura da borda interna (m): | B7: =IF(B5="IFR-P",IF(B4<3,90,IF(B2="S",155,120)),"NA") -> NA | E7: =IF(E5="IFR-P",IF(E4<3,90,IF(E2="S",155,120)),"NA") -> NA | H7: =IF(H5="IFR-P",IF(H4<3,90,IF(H2="S",155,120)),"NA") -> 90 | K7: =IF(K5="IFR-P",IF(K4<3,90,IF(K2="S",155,120)),"NA") -> 90 | N7: =IF(N5="IFR-P",IF(N4<3,90,IF(N2="S",155,120)),"NA") -> 90 | Q7: =IF(Q5="IFR-P",IF(Q4<3,90,IF(Q2="S",155,120)),"NA") -> 90
A8: Elevação da borda interna (m): | B8: =IF(B5="IFR-P",B6,"NA") -> NA | E8: =IF(E5="IFR-P",E6,"NA") -> NA | H8: 0 | K8: 0 | N8: =IF(N5="IFR-P",N6,"NA") -> 0 | Q8: =IF(Q5="IFR-P",Q6,"NA") -> 0
A9: Distância da cabeceira (m): | B9: =IF(B5="IFR-P",IF(B4<3,FORMULÁRIO!$C$17+APROX!B18,IF(FORMULÁRIO!$C$13<1800,FORMULÁRIO!$C$13,1800)),"NA") -> NA | C9: =IF(C5="IFR-P",IF(C4<3,FORMULÁRIO!$C$17+APROX!C18,IF(FORMULÁRIO!$C$13<1800,FORMULÁRIO!$C$13,1800)),"NA") -> NA | D9: =IF(D5="IFR-P",IF(D4<3,FORMULÁRIO!$C$17+APROX!D18,IF(FORMULÁRIO!$C$13<1800,FORMULÁRIO!$C$13,1800)),"NA") -> NA | E9: =IF(E5="IFR-P",IF(E4<3,FORMULÁRIO!$C$17+APROX!E18,IF(FORMULÁRIO!$C$13<1800,FORMULÁRIO!$C$13,1800)),"NA") -> NA | H9: =IF(H5="IFR-P",IF(H4<3,FORMULÁRIO!$I$17+APROX!H18,IF(FORMULÁRIO!$I$13<1800,FORMULÁRIO!$I$13,1800)),"NA") -> 180.1 | K9: =IF(K5="IFR-P",IF(K4<3,FORMULÁRIO!$I$17+APROX!K18,IF(FORMULÁRIO!$I$13<1800,FORMULÁRIO!$I$13,1800)),"NA") -> 180.1 | N9: =IF(N5="IFR-P",IF(N4<3,FORMULÁRIO!$O$17+APROX!N18,IF(FORMULÁRIO!$O$13<1800,FORMULÁRIO!$O$13,1800)),"NA") -> 180.1 | Q9: =IF(Q5="IFR-P",IF(Q4<3,FORMULÁRIO!$O$17+APROX!Q18,IF(FORMULÁRIO!$O$13<1800,FORMULÁRIO!$O$13,1800)),"NA") -> 180.1
A10: Abertura para cada lado (%): | B10: =IF(B5="IFR-P",0.1,"NA") -> NA | E10: =IF(E5="IFR-P",0.1,"NA") -> NA | H10: =IF(H5="IFR-P",0.1,"NA") -> 0.1 | K10: =IF(K5="IFR-P",0.1,"NA") -> 0.1 | N10: =IF(N5="IFR-P",0.1,"NA") -> 0.1 | Q10: =IF(Q5="IFR-P",0.1,"NA") -> 0.1
A11: Gradiente (%): | B11: =IF(B5="IFR-P",IF(B4<3,0.04,0.0333),"NA") -> NA | E11: =IF(E5="IFR-P",IF(E4<3,0.04,0.0333),"NA") -> NA | H11: =IF(H5="IFR-P",IF(H4<3,0.04,0.0333),"NA") -> 0.04 | K11: =IF(K5="IFR-P",IF(K4<3,0.04,0.0333),"NA") -> 0.04 | N11: =IF(N5="IFR-P",IF(N4<3,0.04,0.0333),"NA") -> 0.04 | Q11: =IF(Q5="IFR-P",IF(Q4<3,0.04,0.0333),"NA") -> 0.04
A12: Elevação da borda externa (m): | B12: =IF(B5="IFR-P",FORMULÁRIO!$C$7+45,"NA") -> NA | E12: =IF(E5="IFR-P",FORMULÁRIO!$C$7+45,"NA") -> NA | H12: =IF(H5="IFR-P",FORMULÁRIO!$C$7+45,"NA") -> 832.71 | K12: =IF(K5="IFR-P",FORMULÁRIO!$C$7+45,"NA") -> 832.71 | N12: =IF(N5="IFR-P",FORMULÁRIO!$C$7+45,"NA") -> 832.71 | Q12: =IF(Q5="IFR-P",FORMULÁRIO!$C$7+45,"NA") -> 832.71

Sheet TRANSIÇÃO (hidden)
A1: CODIGO DE REFERÊNCIA | B1: =MAX(FORMULÁRIO!C26:H26) -> 3 | C1: =MAX(FORMULÁRIO!I26:N26) -> 0 | D1: =MAX(FORMULÁRIO!O26:T26) -> 0
A2: TIPO DE OPERAÇÃO (VFR, IFR OU IFR-P) | B2: =IF(B10<10,"VFR",IF(B16<100,"IFR","IFR-P")) -> VFR | C2: =IF(C10<10,"VFR",IF(C16<100,"IFR","IFR-P")) -> IFR | D2: =IF(D10<10,"VFR",IF(D16<100,"IFR","IFR-P")) -> IFR
A5: Gradiente (%): | B5: =IF(B2="IFR-P",0.143,IF(B1>2,0.143,0.2)) -> 0.143 | C5: =IF(C2="IFR-P",0.143,IF(C1>2,0.143,0.2)) -> 0.2 | D5: =IF(D2="IFR-P",0.143,IF(D1>2,0.143,0.2)) -> 0.2
B8: =IF(FORMULÁRIO!C27="vfr",1,IF(FORMULÁRIO!C27="ifr npa",10,IF(FORMULÁRIO!C27="não aplicável",0,1000))) -> 1 | C8: =IF(FORMULÁRIO!I27="vfr",1,IF(FORMULÁRIO!I27="ifr npa",10,IF(FORMULÁRIO!I27="não aplicável",0,1000))) -> 1000 | D8: =IF(FORMULÁRIO!O27="vfr",1,IF(FORMULÁRIO!O27="ifr npa",10,IF(FORMULÁRIO!O27="não aplicável",0,1000))) -> 1000
B9: =IF(FORMULÁRIO!F27="vfr",1,IF(FORMULÁRIO!F27="ifr npa",10,IF(FORMULÁRIO!F27="não aplicável",0,1000))) -> 1 | C9: =IF(FORMULÁRIO!L27="vfr",1,IF(FORMULÁRIO!L27="ifr npa",10,IF(FORMULÁRIO!L27="não aplicável",0,1000))) -> 1000 | D9: =IF(FORMULÁRIO!R27="vfr",1,IF(FORMULÁRIO!R27="ifr npa",10,IF(FORMULÁRIO!R27="não aplicável",0,1000))) -> 1000
B10: =SUM(B8:B9) -> 2 | C10: =SUM(C8:C9) -> 2000 | D10: =SUM(D8:D9) -> 2000

Sheet HORIZONTAL INTERNA (hidden)
A1: CODIGO DE REFERÊNCIA | B1: =PISTA!B1 -> 3 | C1: =PISTA!C1 -> 0 | D1: =PISTA!D1 -> 0
A2: TIPO DE OPERAÇÃO (VFR, IFR OU IFR-P) | B2: =PISTA!B2 -> VFR | C2: =PISTA!C2 -> IFR-P | D2: =PISTA!D2 -> IFR-P
A4: Altitude (m): | B4: =B7+45 -> 832.71 | C4: =C7+45 -> 832.71 | D4: =D7+45 -> 832.71
A5: Raio (m) | B5: =IF(B1>2,4000,IF(B2="VFR",IF(B1=1,2000,2500),3500)) -> 4000 | C5: =IF(C1>2,4000,IF(C2="VFR",IF(C1=1,2000,2500),3500)) -> 3500 | D5: =IF(D1>2,4000,IF(D2="VFR",IF(D1=1,2000,2500),3500)) -> 3500
A7: altitude | B7: =IF(FORMULÁRIO!C7-FORMULÁRIO!C15>5.99,FORMULÁRIO!C15,FORMULÁRIO!C7) -> 787.71 | C7: =IF(AND(FORMULÁRIO!C7-FORMULÁRIO!I15>5.99,FORMULÁRIO!I15>0),FORMULÁRIO!I15,FORMULÁRIO!C7) -> 787.71 | D7: =IF(AND(FORMULÁRIO!C7-FORMULÁRIO!O15>5.99,FORMULÁRIO!O15>0),FORMULÁRIO!O15,FORMULÁRIO!C7) -> 787.71

Sheet CÔNICA (hidden)
A1: CODIGO DE REFERÊNCIA | B1: ='HORIZONTAL INTERNA'!B1 -> 3 | C1: ='HORIZONTAL INTERNA'!C1 -> 0 | D1: ='HORIZONTAL INTERNA'!D1 -> 0
A2: TIPO DE OPERAÇÃO (VFR, IFR OU IFR-P) | B2: ='HORIZONTAL INTERNA'!B2 -> VFR | C2: ='HORIZONTAL INTERNA'!C2 -> IFR-P | D2: ='HORIZONTAL INTERNA'!D2 -> IFR-P
A4: Altitude (m): | B4: =IF(B1=4,100,IF(B1=3,IF(B2="IFR-P",100,75),IF(B1=2,IF(B2="VFR",55,60),IF(B1=1,IF(B2="VFR",35,60)))))+'HORIZONTAL INTERNA'!B4 -> 907.71 | C4: =IF(C1=4,100,IF(C1=3,IF(C2="IFR-P",100,75),IF(C1=2,IF(C2="VFR",55,60),IF(C1=1,IF(C2="VFR",35,60)))))+'HORIZONTAL INTERNA'!C4 -> 832.71 | D4: =IF(D1=4,100,IF(D1=3,IF(D2="IFR-P",100,75),IF(D1=2,IF(D2="VFR",55,60),IF(D1=1,IF(D2="VFR",35,60)))))+'HORIZONTAL INTERNA'!D4 -> 832.71
A5: Raio (m) | B5: 0.05 | C5: 0.05 | D5: 0.05

Sheet SPVV (hidden)
A1: Largura (m): | B1: =IF(FORMULÁRIO!C$113="aplicável",2350,"NA") -> 2350 | C1: =IF(FORMULÁRIO!D$113="aplicável",2350,"NA") -> NA | D1: =IF(FORMULÁRIO!E$113="aplicável",2350,"NA") -> NA | E1: =IF(FORMULÁRIO!F$113="aplicável",2350,"NA") -> NA | F1: =IF(FORMULÁRIO!G$113="aplicável",2350,"NA") -> NA | G1: =IF(FORMULÁRIO!H$113="aplicável",2350,"NA") -> NA | H1: =IF(FORMULÁRIO!I$113="aplicável",2350,"NA") -> NA | I1: =IF(FORMULÁRIO!J$113="aplicável",2350,"NA") -> NA | J1: =IF(FORMULÁRIO!K$113="aplicável",2350,"NA") -> NA | K1: =IF(FORMULÁRIO!L$113="aplicável",2350,"NA") -> NA | L1: =IF(FORMULÁRIO!M$113="aplicável",2350,"NA") -> NA | M1: =IF(FORMULÁRIO!N$113="aplicável",2350,"NA") -> NA | N1: =IF(FORMULÁRIO!O$113="aplicável",2350,"NA") -> NA | O1: =IF(FORMULÁRIO!P$113="aplicável",2350,"NA") -> NA | P1: =IF(FORMULÁRIO!Q$113="aplicável",2350,"NA") -> NA | Q1: =IF(FORMULÁRIO!R$113="aplicável",2350,"NA") -> NA | R1: =IF(FORMULÁRIO!S$113="aplicável",2350,"NA") -> NA | S1: =IF(FORMULÁRIO!T$113="aplicável",2350,"NA") -> NA | T1: =IF(FORMULÁRIO!U$113="aplicável",2350,"NA") -> NA | U1: =IF(FORMULÁRIO!V$113="aplicável",2350,"NA") -> NA
A2: Buffer (m): | B2: =IF(FORMULÁRIO!C$113="aplicável",470,"NA") -> 470 | C2: =IF(FORMULÁRIO!D$113="aplicável",470,"NA") -> NA | D2: =IF(FORMULÁRIO!E$113="aplicável",470,"NA") -> NA | E2: =IF(FORMULÁRIO!F$113="aplicável",470,"NA") -> NA | F2: =IF(FORMULÁRIO!G$113="aplicável",470,"NA") -> NA | G2: =IF(FORMULÁRIO!H$113="aplicável",470,"NA") -> NA | H2: =IF(FORMULÁRIO!I$113="aplicável",470,"NA") -> NA | I2: =IF(FORMULÁRIO!J$113="aplicável",470,"NA") -> NA | J2: =IF(FORMULÁRIO!K$113="aplicável",470,"NA") -> NA | K2: =IF(FORMULÁRIO!L$113="aplicável",470,"NA") -> NA | L2: =IF(FORMULÁRIO!M$113="aplicável",470,"NA") -> NA | M2: =IF(FORMULÁRIO!N$113="aplicável",470,"NA") -> NA | N2: =IF(FORMULÁRIO!O$113="aplicável",470,"NA") -> NA | O2: =IF(FORMULÁRIO!P$113="aplicável",470,"NA") -> NA | P2: =IF(FORMULÁRIO!Q$113="aplicável",470,"NA") -> NA | Q2: =IF(FORMULÁRIO!R$113="aplicável",470,"NA") -> NA | R2: =IF(FORMULÁRIO!S$113="aplicável",470,"NA") -> NA | S2: =IF(FORMULÁRIO!T$113="aplicável",470,"NA") -> NA | T2: =IF(FORMULÁRIO!U$113="aplicável",470,"NA") -> NA | U2: =IF(FORMULÁRIO!V$113="aplicável",470,"NA") -> NA
A3: Comprimento (m): | B3: =IF(FORMULÁRIO!C$113="aplicável",2350,"NA") -> 2350 | C3: =IF(FORMULÁRIO!D$113="aplicável",2350,"NA") -> NA | D3: =IF(FORMULÁRIO!E$113="aplicável",2350,"NA") -> NA | E3: =IF(FORMULÁRIO!F$113="aplicável",2350,"NA") -> NA | F3: =IF(FORMULÁRIO!G$113="aplicável",2350,"NA") -> NA | G3: =IF(FORMULÁRIO!H$113="aplicável",2350,"NA") -> NA | H3: =IF(FORMULÁRIO!I$113="aplicável",2350,"NA") -> NA | I3: =IF(FORMULÁRIO!J$113="aplicável",2350,"NA") -> NA | J3: =IF(FORMULÁRIO!K$113="aplicável",2350,"NA") -> NA | K3: =IF(FORMULÁRIO!L$113="aplicável",2350,"NA") -> NA | L3: =IF(FORMULÁRIO!M$113="aplicável",2350,"NA") -> NA | M3: =IF(FORMULÁRIO!N$113="aplicável",2350,"NA") -> NA | N3: =IF(FORMULÁRIO!O$113="aplicável",2350,"NA") -> NA | O3: =IF(FORMULÁRIO!P$113="aplicável",2350,"NA") -> NA | P3: =IF(FORMULÁRIO!Q$113="aplicável",2350,"NA") -> NA | Q3: =IF(FORMULÁRIO!R$113="aplicável",2350,"NA") -> NA | R3: =IF(FORMULÁRIO!S$113="aplicável",2350,"NA") -> NA | S3: =IF(FORMULÁRIO!T$113="aplicável",2350,"NA") -> NA | T3: =IF(FORMULÁRIO!U$113="aplicável",2350,"NA") -> NA | U3: =IF(FORMULÁRIO!V$113="aplicável",2350,"NA") -> NA
A5: Altitude seção de través (m): | B5: =IF(FORMULÁRIO!$C$113="aplicável",FORMULÁRIO!C122+FORMULÁRIO!$C$7-(250/3.2808),"NA") -> 863.5090734 | E5: =IF(FORMULÁRIO!$C$113="aplicável",FORMULÁRIO!F122+FORMULÁRIO!$C$7-(250/3.2808),"NA") -> 863.5090734 | H5: =IF(FORMULÁRIO!$I$113="aplicável",FORMULÁRIO!I122+FORMULÁRIO!$C$7-(250/3.2808),"NA") -> NA | K5: =IF(FORMULÁRIO!$I$113="aplicável",FORMULÁRIO!L122+FORMULÁRIO!$C$7-(250/3.2808),"NA") -> NA | N5: =IF(FORMULÁRIO!$O$113="aplicável",FORMULÁRIO!O122+FORMULÁRIO!$C$7-(250/3.2808),"NA") -> NA | Q5: =IF(FORMULÁRIO!$O$113="aplicável",FORMULÁRIO!R122+FORMULÁRIO!$C$7-(250/3.2808),"NA") -> NA
A6: Altitude seção de aprox/dep (m): | B6: =IF(FORMULÁRIO!$C$113="aplicável",FORMULÁRIO!C122+FORMULÁRIO!$C$7-(325/3.2808),"NA") -> 840.6487954 | E6: =IF(FORMULÁRIO!$C$113="aplicável",FORMULÁRIO!F122+FORMULÁRIO!$C$7-(325/3.2808),"NA") -> 840.6487954 | H6: =IF(FORMULÁRIO!$I$113="aplicável",FORMULÁRIO!I122+FORMULÁRIO!$C$7-(325/3.2808),"NA") -> NA | K6: =IF(FORMULÁRIO!$I$113="aplicável",FORMULÁRIO!L122+FORMULÁRIO!$C$7-(325/3.2808),"NA") -> NA | N6: =IF(FORMULÁRIO!$O$113="aplicável",FORMULÁRIO!O122+FORMULÁRIO!$C$7-(325/3.2808),"NA") -> NA | Q6: =IF(FORMULÁRIO!$O$113="aplicável",FORMULÁRIO!R122+FORMULÁRIO!$C$7-(325/3.2808),"NA") -> NA
A7: MARCAÇÃO
A10: Largura (m): | B10: =IF(FORMULÁRIO!$C$124="aplicável",IF(FORMULÁRIO!$C$125="A",2350,(IF(FORMULÁRIO!$C$125="B",2780,4170))),"NA") -> 4170 | H10: =IF(FORMULÁRIO!$I$124="aplicável",IF(FORMULÁRIO!$I$125="A",2350,(IF(FORMULÁRIO!$I$125="B",2780,4170))),"NA") -> NA | N10: =IF(FORMULÁRIO!$O$124="aplicável",IF(FORMULÁRIO!$O$125="A",2350,(IF(FORMULÁRIO!$O$125="B",2780,4170))),"NA") -> NA
A11: Buffer (m): | B11: =IF(FORMULÁRIO!$C$124="aplicável",IF(FORMULÁRIO!$C$125="A",470,(IF(FORMULÁRIO!$C$125="B",470,930))),"NA") -> 930 | H11: =IF(FORMULÁRIO!$I$124="aplicável",IF(FORMULÁRIO!$I$125="A",470,(IF(FORMULÁRIO!$I$125="B",470,930))),"NA") -> NA | N11: =IF(FORMULÁRIO!$O$124="aplicável",IF(FORMULÁRIO!$O$125="A",470,(IF(FORMULÁRIO!$O$125="B",470,930))),"NA") -> NA
A12: Comprimento (m): | B12: =IF(FORMULÁRIO!$C$124="aplicável",IF(FORMULÁRIO!$C$125="A",2350,(IF(FORMULÁRIO!$C$125="B",2780,4170))),"NA") -> 4170 | H12: =IF(FORMULÁRIO!$I$124="aplicável",IF(FORMULÁRIO!$I$125="A",2350,(IF(FORMULÁRIO!$I$125="B",2780,4170))),"NA") -> NA | N12: =IF(FORMULÁRIO!$O$124="aplicável",IF(FORMULÁRIO!$O$125="A",2350,(IF(FORMULÁRIO!$O$125="B",2780,4170))),"NA") -> NA
A14: Altitude seção de través (m): | B14: =IF(FORMULÁRIO!$C$124="aplicável",FORMULÁRIO!C134+FORMULÁRIO!$C$7-(500/3.2808),"NA") -> 940.3081468 | E14: =IF(FORMULÁRIO!$C$124="aplicável",FORMULÁRIO!F134+FORMULÁRIO!$C$7-(500/3.2808),"NA") -> 940.3081468 | H14: =IF(FORMULÁRIO!$I$124="aplicável",FORMULÁRIO!I134+FORMULÁRIO!$C$7-(500/3.2808),"NA") -> NA | K14: =IF(FORMULÁRIO!$I$124="aplicável",FORMULÁRIO!L134+FORMULÁRIO!$C$7-(500/3.2808),"NA") -> NA | N14: =IF(FORMULÁRIO!$O$124="aplicável",FORMULÁRIO!O134+FORMULÁRIO!$C$7-(500/3.2808),"NA") -> NA | Q14: =IF(FORMULÁRIO!$O$124="aplicável",FORMULÁRIO!R134+FORMULÁRIO!$C$7-(500/3.2808),"NA") -> NA
A15: Altitude seção de aprox/dep (m): | B15: =IF(FORMULÁRIO!$C$124="aplicável",FORMULÁRIO!C134+FORMULÁRIO!$C$7-(650/3.2808),"NA") -> 894.5875908 | E15: =IF(FORMULÁRIO!$C$124="aplicável",FORMULÁRIO!F134+FORMULÁRIO!$C$7-(650/3.2808),"NA") -> 894.5875908 | H15: =IF(FORMULÁRIO!$I$124="aplicável",FORMULÁRIO!I134+FORMULÁRIO!$C$7-(650/3.2808),"NA") -> NA | K15: =IF(FORMULÁRIO!$I$124="aplicável",FORMULÁRIO!L134+FORMULÁRIO!$C$7-(650/3.2808),"NA") -> NA | N15: =IF(FORMULÁRIO!$O$124="aplicável",FORMULÁRIO!O134+FORMULÁRIO!$C$7-(650/3.2808),"NA") -> NA | Q15: =IF(FORMULÁRIO!$O$124="aplicável",FORMULÁRIO!R134+FORMULÁRIO!$C$7-(650/3.2808),"NA") -> NA
A16: Largura (m): | B16: =IF(FORMULÁRIO!C136="aplicável",7410,"NA") -> NA | H16: =IF(FORMULÁRIO!I136="aplicável",7410,"NA") -> NA | N16: =IF(FORMULÁRIO!O136="aplicável",7410,"NA") -> NA
A17: Buffer (m): | B17: =IF(FORMULÁRIO!C136="aplicável",930,"NA") -> NA | H17: =IF(FORMULÁRIO!I136="aplicável",930,"NA") -> NA | N17: =IF(FORMULÁRIO!O136="aplicável",930,"NA") -> NA
A18: Comprimento (m): | B18: =IF(FORMULÁRIO!C136="aplicável",5560,"NA") -> NA | H18: =IF(FORMULÁRIO!I136="aplicável",5560,"NA") -> NA | N18: =IF(FORMULÁRIO!O136="aplicável",5560,"NA") -> NA
A19: Altitude seção través (m): | B19: =IF(FORMULÁRIO!C136="aplicável",FORMULÁRIO!$C$7+(1000/3.2808),"NA") -> NA | H19: =IF(FORMULÁRIO!I136="aplicável",FORMULÁRIO!$C$7+(1000/3.2808),"NA") -> NA | N19: =IF(FORMULÁRIO!O136="aplicável",FORMULÁRIO!$C$7+(1000/3.2808),"NA") -> NA
A20: Altitude seção aprox/dep (m): | B20: =IF(FORMULÁRIO!C136="aplicável",FORMULÁRIO!$C$7+(850/3.2808),"NA") -> NA | H20: =IF(FORMULÁRIO!I136="aplicável",FORMULÁRIO!$C$7+(850/3.2808),"NA") -> NA | N20: =IF(FORMULÁRIO!O136="aplicável",FORMULÁRIO!$C$7+(850/3.2808),"NA") -> NA
